Cogmind - Beta 11 X5 @@@ ROGUE MODE // 2021.06.24 @ 17:11:25 Player: Terminus Result: Escaped singularity! Performance ------------- Evolutions (9) 4500 Regions Visited (35) 7000 Robots Destroyed (879) 4395 Value Destroyed (46197) 46197 Prototype IDs (112) 2240 Alien Tech Used (13) 2600 Bonus (59522) 59522 TOTAL SCORE: 126454 Bonus ------- High Alert Combat Kills 11098 Follower Combat Kills 2329 Network Hubs Disabled 200 Met Data Miner 300 Met Imprinter 300 Destroyed Z-Imprinter 1000 Met Zhirov 300 Built Enhanced Grunts 300 Met R17 at Cetus 500 Hacked Protovariant 500 Scanned by Researcher 500 Destroyed MAIN.C Guards 500 Met MAIN.C 5000 Destroyed MAIN.C Shell 5000 Destroyed MAIN.C 10000 Met Architect 300 Started Test 138-B 500 Destroyed A8 300 Destroyed A6 400 Destroyed A5 500 Destroyed A4 700 Destroyed A3 800 Destroyed A2 1000 Destroyed Architect 15000 Win 3000 Friendly Fire -805 Cogmind --------- Core Integrity 803/1850 Matter 290/300 Energy 98/100 System Corruption 0% Temperature Cool (0) Movement Core (50) Location Near Former Tau Ceti IV Parts ------- > --- POWER (2) -------- (None) > --- PROPULSION (4) --- (None) > --- UTILITY (15) ----- (None) > --- WEAPON (4) ------- (None) > --- INVENTORY (5) ---- Experimental Powered Armor Core Stripper Sigix Broadsword Peak State ------------ > --- POWER ------------ Zero-point Reactor Zero-point Reactor > --- PROPULSION ------- Experimental Biometal Heavy Treads High-density Centrium Heavy Treads > --- UTILITY ---------- Desublimator Desublimator Huge Storage Unit Experimental Energy Well Experimental Energy Well Experimental Matter Compressor Experimental Targeting Computer Experimental Targeting Computer Experimental Targeting Computer Experimental Targeting Computer Experimental Targeting Computer Experimental Target Analyzer Experimental Weapon Cycler Experimental Phase Shifter Experimental Powered Armor > --- WEAPON ----------- Cooled Nova Cannon Hypervelocity Linear Accelerator Perforator > --- INVENTORY -------- Quantum Reactor Quantum Reactor Quantum Reactor Desublimator Experimental Energy Well Experimental Energy Well Experimental Matter Compressor Experimental Matter Compressor Experimental Targeting Computer Experimental Targeting Computer Experimental Weapon Cycler Experimental Phase Shifter Layered Medium Armor Plating Layered Medium Armor Plating Experimental Powered Armor Hypervelocity Linear Accelerator Hypervelocity Linear Accelerator Hypervelocity Linear Accelerator Hypervelocity Linear Accelerator Improved Plasma Cutter Core Stripper Sigix Broadsword Sigix Corpse [Rating: 256] Favorites ----------- Power Heavy Deuterium Engine Engine Heavy Deuterium Engine Reactor Vortex Chain Reactor Propulsion Improved Treads Treads Improved Treads Wheel High-density Centrium Wheel Utility Experimental Targeting Computer Device Experimental Sensor Array Storage Huge Storage Unit Processor Experimental Targeting Computer Hackware Improved Hacking Suite Protection Heavy Regenerative Plating Artifact Spacefold Activator Weapon Multirail Energy Gun Long-range Gatling Laser Energy Cannon Cooled Nova Cannon Ballistic Gun Multirail Ballistic Cannon Perforator Launcher Rocket Launcher Special Weapon Improved Plasma Cutter Impact Weapon Core Stripper Slashing Weapon Katana Build | -11 -10 -10 -9 -9 -8 -8 -7 -7 -7 -7 -6 -6 -6 -6 -6 -6 -5 -5 -5 -5 -5 -5 -4 -4 -4 -4 -3 -3 -3 -3 -2 -2 -1 -1 -1 ------- Run | Scr Mat Min Mat Min Mat Sto Fac Low Low Dat Pro Fac Low Low Zio Dee Pro Fac Ext Cet Arc Hub Fac Upp Upp Zhi Pro Res Qua Sec Res Tes Acc Com Ac0 Slots Evolved 18 | . . . 2 . 2 . 2 . . . . 2 . . . . . 2 . . . . 2 . . . . 2 . . 2 . 2 . . Power 1 | . . . . . . . . . . . . . . . . . . . . . . . . . . . . 1 . . . . . . . Propulsion 2 | . . . . . 1 . . . . . . 1 . . . . . . . . . . . . . . . . . . . . . . . Utility 13 | . . . 1 . 1 . 2 . . . . 1 . . . . . 1 . . . . 2 . . . . 1 . . 2 . 2 . . Weapon 2 | . . . 1 . . . . . . . . . . . . . . 1 . . . . . . . . . . . . . . . . . Parts Attached 879 | 6 7 4 38 2 28 22 33 2 4 . 10 27 2 4 3 11 2 34 34 16 16 6 43 4 11 9 . 53 62 112 23 55 39 73 84 Power 44 | 1 2 . 4 . 1 2 3 . . . . 1 . . . . . . . 2 1 . . . 1 2 . 4 4 2 . . . 7 7 Engine 15 | 1 2 . 4 . 1 2 3 . . . . 1 . . . . . . . 1 . . . . . . . . . . . . . . . Core . | . . . . . . . . . . . . . . . . . . . . . . . . . . . . . . . . . . . . Reactor 29 | . . . . . . . . . . . . . . . . . . . . 1 1 . . . 1 2 . 4 4 2 . . . 7 7 Propulsion 71 | 2 1 . 6 . 7 8 1 . . . . 4 . . . 2 2 4 8 4 . . 3 . . . . 2 4 5 . . . 4 4 Treads 70 | 2 1 . 6 . 7 8 1 . . . . 4 . . . 2 2 4 8 4 . . 3 . . . . 2 4 5 . . . 4 3 Leg . | . . . . . . . . . . . . . . . . . . . . . . . . . . . . . . . . . . . . Wheel 1 | . . . . . . . . . . . . . . . . . . . . . . . . . . . . . . . . . . . 1 Hover . | . . . . . . . . . . . . . . . . . . . . . . . . . . . . . . . . . . . . Flight . | . . . . . . . . . . . . . . . . . . . . . . . . . . . . . . . . . . . . Utility 456 | 1 2 1 10 1 8 2 16 2 . . 8 18 2 2 . 7 . 19 23 6 8 6 23 . 6 7 . 29 35 61 21 30 22 33 47 Device 306 | . . . 5 1 3 . 8 1 . . 3 12 1 1 . 5 . 13 18 3 6 5 15 . 4 3 . 25 24 44 19 28 18 17 24 Storage 25 | 1 1 . 1 . 1 1 . . . . 1 1 . . . . . . . . . . . . . . . . 2 2 . . 2 8 4 Processor 25 | . . . . . . . 1 . . . . 1 . . . . . 1 . 1 . . 1 . . . . 1 3 3 1 1 1 6 4 Hackware 13 | . . . . . 1 . 1 . . . . . . . . 2 . . . . 1 1 1 . . 1 . . 1 . 1 1 1 . 1 Protection 85 | . 1 1 4 . 3 1 6 1 . . 4 4 1 1 . . . 5 5 2 1 . 6 . 2 3 . 3 5 10 . . . 2 14 Artifact 2 | . . . . . . . . . . . . . . . . . . . . . . . . . . . . . . 2 . . . . . Weapon 308 | 2 2 3 18 1 12 10 13 . 4 . 2 4 . 2 3 2 . 11 3 4 7 . 17 4 4 . . 18 19 44 2 25 17 29 26 Energy Gun 24 | . . 2 8 . 2 1 3 . . . . . . . . . . . . . . . . . . . . . . . . . . 4 4 Energy Cannon 26 | . . . 4 . 1 . 1 . . . . 2 . . 1 1 . 2 . . . . . . . . . . . 2 . 5 3 2 2 Ballistic Gun 188 | 2 1 1 4 1 9 7 9 . 2 . 1 2 . 1 2 1 . 9 2 3 6 . 6 4 2 . . 8 17 37 2 15 11 19 4 Ballistic Cannon 29 | . . . . . . . . . . . . . . . . . . . . . . . 5 . . . . 8 . . . 1 . 2 13 Launcher 19 | . 1 . 2 . . 1 . . 2 . 1 . . 1 . . . . 1 1 . . 4 . 2 . . 2 . 1 . . . . . Special Weapon 9 | . . . . . . . . . . . . . . . . . . . . . 1 . 2 . . . . . . 1 . 1 2 . 2 Impact Weapon 12 | . . . . . . . . . . . . . . . . . . . . . . . . . . . . . 2 3 . 3 1 2 1 Slashing Weapon 1 | . . . . . . 1 . . . . . . . . . . . . . . . . . . . . . . . . . . . . . Piercing Weapon . | . . . . . . . . . . . . . . . . . . . . . . . . . . . . . . . . . . . . Special Melee Weapon . | . . . . . . . . . . . . . . . . . . . . . . . . . . . . . . . . . . . . Unidentified Prototypes 104 | . . . 3 . 2 3 6 . . . 1 . . . . 1 . . . 4 . . 1 . . 4 . 9 9 14 . 4 1 15 27 Corrupted Parts 3 | . . . . . . . . . . . 1 . . . . . . . . 1 1 . . . . . . . . . . . . . . System Corruption 24 | . . . . . . . . . . . 6 . . . . . . . . 8 10 . . . . . . . . . . . . . . Parts Lost 102 | . 1 4 6 1 2 1 1 . . . . 1 . . . . . 7 . 4 . . 1 1 . . . 9 4 9 1 1 3 11 34 Power 11 | . . . . . . . . . . . . . . . . . . . . 1 . . . 1 . . . 3 . . . . . 2 4 Propulsion 16 | . 1 . 1 . . 1 1 . . . . 1 . . . . . 4 . 2 . . . . . . . 1 . 1 . . . 1 2 Utility 41 | . . 1 1 . . . . . . . . . . . . . . 2 . 1 . . . . . . . 3 4 4 1 . 1 4 19 Weapon 34 | . . 3 4 1 2 . . . . . . . . . . . . 1 . . . . 1 . . . . 2 . 4 . 1 2 4 9 Highest Loss Streak 11 | . 1 2 1 1 1 1 1 . . . . 1 . . . . . 3 . 2 . . 1 1 . . . 2 3 3 1 1 2 4 11 Average Slot Usage (%) 91 | . 81 84 99 100 99 99 99 100 100 100 99 99 100 100 100 99 100 98 99 97 87 88 80 85 89 88 89 88 89 79 81 80 83 84 87 Engine 3 | . 14 14 10 11 9 8 7 7 7 7 7 6 6 6 6 6 6 5 5 4 . . . . . . . . . . . . . . . Reactor 3 | . . . . . . . . . . . . . . . . . . . . . 5 5 5 4 5 4 5 8 8 3 4 4 4 4 7 Treads 15 | . 16 14 21 22 26 26 23 23 23 23 23 25 26 26 26 26 26 21 22 20 11 11 10 10 10 10 10 9 9 8 8 8 8 7 7 Device 12 | . . . 10 11 9 9 14 14 15 15 14 12 12 12 13 12 13 15 11 15 16 12 18 21 17 15 15 13 13 12 12 8 11 14 14 Storage 8 | . 14 14 11 11 9 9 7 7 7 7 7 6 6 6 6 6 6 5 5 5 5 5 5 5 5 5 5 4 4 4 4 4 4 10 15 Processor 13 | . . . . . . . 6 7 7 7 7 12 13 13 13 13 13 8 11 11 11 11 10 10 10 10 10 13 17 15 17 17 19 22 23 Hackware 7 | . . . . . 9 9 14 15 15 15 15 13 13 13 13 13 13 11 11 5 5 9 14 15 15 15 15 14 11 9 13 16 16 2 . Protection 4 | . 7 14 10 11 9 9 . . . . . . . . . . . 3 4 5 4 5 2 . 3 4 5 3 2 4 4 4 4 4 5 Energy Cannon 1 | . . . 7 11 2 . . . . . . . . . . . . . . . . . . . . . . . . . . . . . 3 Ballistic Gun 16 | . 27 9 19 22 24 26 22 23 22 23 22 19 20 19 19 19 20 22 23 22 19 23 2 13 20 21 21 12 18 17 16 14 15 15 . Ballistic Cannon 1 | . . . . . . . . . . . . . . . . . . . . . . . 8 3 . . . 5 . . . . . . 5 Naked Turns 5 | . . . . . . . . . . . . . . . . . . . . . . . . . . . . . . . . . . . 5 Heaviest Build 232 | 12 36 35 67 66 107 107 109 102 103 102 109 109 109 110 106 107 104 123 120 128 136 136 142 135 136 136 136 156 155 186 179 184 184 191 232 Greatest Support 180 | 40 40 20 46 46 68 69 69 66 66 66 66 91 91 91 91 91 102 106 120 160 160 160 160 160 160 160 160 160 180 180 180 180 180 180 180 Greatest Overweight (x) 9 | 3 1 1 2 1 1 1 1 1 1 1 1 1 1 1 1 1 1 1 1 1 . . 1 . . . . . . 1 . 1 1 1 9 Average Overweight (x) . | 1 . 1 1 1 . 1 1 1 1 1 1 1 1 1 1 1 1 1 . . . . . . . . . . . . . . . . . Largest Inventory Capacity 25 | 8 15 15 20 20 25 25 25 25 25 25 25 25 25 25 25 25 25 25 25 25 25 25 25 25 25 25 25 25 25 25 25 25 25 25 25 Average Capacity 23 | 7 14 15 19 20 20 25 25 25 25 25 25 25 25 25 25 25 25 25 25 25 25 25 25 25 25 25 25 25 25 25 25 25 25 25 24 Most Carried 25 | 2 15 15 20 20 21 25 25 25 25 25 25 25 25 25 25 25 25 25 25 25 25 25 25 25 25 25 25 25 25 25 25 25 25 25 25 Average Carried 23 | 1 10 13 19 19 19 24 24 25 25 25 24 24 25 25 24 25 25 23 24 24 24 25 24 24 24 24 25 22 24 24 24 24 24 24 24 Final Capacity 25 | 8 15 15 20 20 25 25 25 25 25 25 25 25 25 25 25 25 25 25 25 25 25 25 25 25 25 25 25 25 25 25 25 25 25 25 5 Final Carried 25 | 2 15 15 20 20 21 25 25 25 25 25 25 25 25 25 25 25 25 24 24 25 25 25 24 25 25 25 25 24 25 24 25 25 25 24 5 Class Distribution -------------------- 16% | Scavenger-Mutant 16% | Scavenger-Gunner 16% | Hacker-Skirmisher 13% | Hacker-Gunner 12% | Scavenger-Skirmisher 11% | Tank 5% | Mutant 3% | Hacker-Mutant Dominant Class ---------------- Mutant | -10/Materials Mutant | -10/Mines Tank | -9/Materials Tank | -9/Mines Tank | -8/Materials Tank | -8/Storage Commander-Skirmisher | -7/Factory Hacker-Skirmisher | -7/Lower Caves Hacker-Skirmisher | -7/Lower Caves Hacker-Skirmisher | -7/Data Miner Hacker-Skirmisher | -6/Proximity Caves Hacker-Skirmisher | -6/Factory Hacker-Skirmisher | -6/Lower Caves Hacker-Skirmisher | -6/Lower Caves Hacker-Skirmisher | -6/Zion Scavenger-Skirmisher | -6/Deep Caves Scavenger-Skirmisher | -5/Proximity Caves Scavenger-Skirmisher | -5/Factory Scavenger-Skirmisher | -5/Extension Scavenger-Skirmisher | -5/Cetus Scavenger-Skirmisher | -5/Archives Scavenger-Skirmisher | -5/Hub_04(d) Hacker-Skirmisher | -4/Factory Scavenger-Skirmisher | -4/Upper Caves Scavenger-Skirmisher | -4/Upper Caves Scavenger-Skirmisher | -4/Zhirov Scavenger-Skirmisher | -3/Proximity Caves Scavenger-Gunner | -3/Research Scavenger-Gunner | -3/Quarantine Hacker-Gunner | -3/Section 7 Hacker-Gunner | -2/Research Hacker-Gunner | -2/Testing Hacker-Gunner | -1/Access Scavenger-Gunner | -1/Command Scavenger-Mutant | -1/Access_0 Resources | -11 -10 -10 -9 -9 -8 -8 -7 -7 -7 -7 -6 -6 -6 -6 -6 -6 -5 -5 -5 -5 -5 -5 -4 -4 -4 -4 -3 -3 -3 -3 -2 -2 -1 -1 -1 ----------- Run | Scr Mat Min Mat Min Mat Sto Fac Low Low Dat Pro Fac Low Low Zio Dee Pro Fac Ext Cet Arc Hub Fac Upp Upp Zhi Pro Res Qua Sec Res Tes Acc Com Ac0 Matter Collected 37981 | 238 557 142 1032 123 1078 1449 591 215 38 . 572 823 117 36 90 180 80 1500 926 808 490 486 1966 320 396 . 219 2618 1814 5727 2059 2348 2428 4488 2027 Remotely 12857 | . . . . . . . . . . . . 156 . . . . . 964 56 . 115 261 1479 . . . . 1928 629 1368 770 888 585 3540 118 Salvage Created 54052 | . 599 290 1817 190 1952 2023 716 222 83 . 721 795 69 39 . 79 . 2394 1349 774 658 1153 2694 409 643 . 277 2604 2013 6287 2941 4257 3947 7045 5012 Parts 2565 | . 42 12 109 8 106 98 32 10 7 . 26 43 4 5 . 3 . 127 47 41 40 61 92 22 28 . 16 116 116 307 141 193 191 273 249 Haulers Intercepted 41 | . 2 . 4 . 5 6 2 . . . . 1 . . . . . . . . . 3 3 . 1 . . 3 . 5 2 2 2 . . Recyclers Shooed 27 | . 1 2 1 . 3 1 . . . . . 1 . . . . . 3 . . . 1 3 . . . . 1 . 3 2 . 3 2 . Parts Field Recycled . | . . . . . . . . . . . . . . . . . . . . . . . . . . . . . . . . . . . . Retrieved Matter . | . . . . . . . . . . . . . . . . . . . . . . . . . . . . . . . . . . . . Parts Self-Destructed 94 | . . . . . . . . 10 5 . 10 . 4 1 . . 12 . . . . . . 22 14 . 16 . . . . . . . . Prevented 33 | . . . . . . . . . . . 17 . 1 . . . . . . . . . . . 15 . . . . . . . . . . Kills | -11 -10 -10 -9 -9 -8 -8 -7 -7 -7 -7 -6 -6 -6 -6 -6 -6 -5 -5 -5 -5 -5 -5 -4 -4 -4 -4 -3 -3 -3 -3 -2 -2 -1 -1 -1 ------- Run | Scr Mat Min Mat Min Mat Sto Fac Low Low Dat Pro Fac Low Low Zio Dee Pro Fac Ext Cet Arc Hub Fac Upp Upp Zhi Pro Res Qua Sec Res Tes Acc Com Ac0 Combat Hostiles Destroyed 621 | . 13 7 28 4 24 28 9 4 6 . 11 6 1 4 . 3 . 27 12 15 4 7 44 8 10 . 4 34 22 62 26 43 39 64 52 Guns 457 | . 10 7 20 1 22 28 9 4 . . 3 6 1 . . 3 . 27 9 11 4 6 . 4 1 . 4 20 20 57 26 40 39 61 14 Cannons 85 | . . . 3 2 2 . . . . . . . . . . . . . . . . . 25 4 . . . 12 . . . . . . 37 AOE 47 | . 3 . 5 . . . . . 6 . 3 . . 4 . . . . 3 4 . . 11 . 6 . . 2 . . . . . . . Classes Destroyed 26 | . 6 1 3 1 1 . 1 1 . . . . . . . 1 . . 2 . . . 2 . . . . . 2 1 . 2 . 2 . Worker 61 | . 2 . 1 . 1 4 . . . . . . . . . . . 9 1 . . 8 2 . . . . 2 . 3 13 1 8 6 . Builder 28 | . . . 2 . . . 1 . . . . 1 . . . . . 3 2 . . 1 6 . . . . 3 . 2 3 1 3 . . Tunneler 6 | . . . . . . . . . . . . . . . . . . . 1 . . 1 2 . . . . . . . 2 . . . . Hauler 41 | . 2 . 4 . 5 6 2 . . . . 1 . . . . . . . . . 3 3 . 1 . . 3 . 5 2 2 2 . . Recycler 58 | . . . 5 . 4 2 1 . . . . 2 . . . . . 3 6 . . 1 4 . . . . 7 . 3 3 3 3 11 . Carrier 1 | . . . . . . . . . . . . . . . . . . . . . . . . . . . . . . 1 . . . . . Mechanic 3 | . . . . . . . . . . . . . . . . . . . . . . . 1 . . . . . . . . 1 1 . . Operator 18 | . 1 . 3 . 2 2 . . . . . . . . . . . . . . 7 . . . . . . . 1 2 . . . . . Watcher 53 | . 3 . 5 . 5 . 2 . . . . 3 . . . . . 4 . 1 . 2 5 . . . . 1 3 5 2 3 5 4 . Swarmer 74 | . 3 . 6 . 2 . . . 6 . . . . 4 . . . . 7 3 . . 8 4 4 . . 11 3 3 . . 5 5 . Saboteur 2 | . . . . . . . . . . . . . . . . . . . . . . . 2 . . . . . . . . . . . . Grunt 220 | . 10 6 12 2 12 20 5 3 . . 9 1 . . . . . 14 2 1 . 5 24 2 5 . . 6 10 24 8 11 15 13 . Brawler 12 | . . . . . . . . 1 . . . . . . . . . . . 1 . . . . . . . . . 1 . 2 3 4 . Duelist 15 | . . . . 2 . . . . . . 1 . . . . . . 1 . . . . 2 1 . . . . . 1 3 1 2 1 . Protector 2 | . . . . . . . . . . . . . . . . . . . . . . . . . . . . . . . . . . 2 . Researcher 2 | . . . . . . . . . . . . . . . . . . . . . . . . . . . . . . . . 2 . . . Sentry 56 | . . . 10 . 8 7 2 . . . . 2 1 . . . . 1 . . 4 2 2 1 1 . . 3 . 5 1 . 2 4 . Specialist 1 | . . . . . . . . . . . . . . . . . . . . . . . . . . . . . . . . . . 1 . Hunter 54 | . . . . . 2 1 . . . . . . . . . . . 9 2 6 . . 2 . . . 4 4 . 4 6 7 2 5 . Programmer 102 | . . . . . . . 2 . . . 1 3 . . . . . 2 . . . . 4 . . . . 10 7 19 8 18 8 20 . Q-Series 5 | . . . . . . . . . . . . . . . . . . . . . . . . . . . . . . . . 3 2 . . Behemoth 3 | . . . . . . . . . . . . . . . . . . . 1 . . . . . . . . . . . . . . 2 . Cetus Guard 4 | . . . . . . . . . . . . . . . . . . . . 4 . . . . . . . . . . . . . . . S7 Guard 3 | . . . . . . . . . . . . . . . . . . . . . . . . . . . . . . 3 . . . . . M Guard 2 | . . . . . . . . . . . . . . . . . . . . . . . . . . . . . . . . . . 2 . Enhanced Grunt 31 | . . . . . . . . . . . . . . . . . . . . . . . . . . . . . . . . . . . 31 Enhanced Sentry 6 | . . . . . . . . . . . . . . . . . . . . . . . . . . . . . . . . . . . 6 Enhanced Hunter 8 | . . . . . . . . . . . . . . . . . . . . . . . . . . . . . . . . . . . 8 Combat Programmer 2 | . . . . . . . . . . . . . . . . . . . . . . . . . . . . . . . . . . 2 . Alpha 7 5 | . . . . . . . . . . . . . . . . . . . . . . . . . . . . . 1 2 . 1 . 1 . Fortress 1 | . . . . . . . . . . . . . . . . . . . . . . . . . . . . . 1 . . . . . . Z-Light 1 | . . . . . . . . . . . . . . . . 1 . . . . . . . . . . . . . . . . . . . Assembled 3 | . . 1 . . . . . . . . . . . . . 2 . . . . . . . . . . . . . . . . . . . Thug 1 | . . . . . . . . . . . . . . . . . . . 1 . . . . . . . . . . . . . . . . Best Kill Streak 26 | . 7 2 7 3 5 4 3 4 3 . 8 3 1 4 . 2 . 7 4 5 2 11 26 3 5 . 2 9 6 11 7 11 7 11 6 Combat Bots Only 14 | . 5 2 4 3 4 4 3 4 3 . 8 1 1 4 . 2 . 4 4 4 2 6 14 3 5 . 2 7 6 8 5 10 5 9 6 Max Kills in Single Turn 9 | . 3 1 2 1 1 2 1 1 2 . 2 2 1 2 . 2 . 3 3 4 1 9 3 1 4 . 1 3 3 2 3 3 4 3 2 Gunslinging 3 | . . . . . . . . . . . . . . . . 1 . . . . . . . . . . . 1 2 1 . 1 3 1 1 Exploded 4 | . 2 . 1 . . . . . 2 . 1 . . 2 . . . . 2 4 . . 3 . 4 . . 1 . . . . . . . Melee . | . . . . . . . . . . . . . . . . . . . . . . . . . . . . . . . . . . . . Uniques/NPCs Destroyed 10 | . . . . . . . . . . . . . . . . 1 . . . . . . . . . . . . . . . . . 2 7 Z-Imprinter (-6/Deep Caves) MAIN.C Shell (-1/Command) MAIN.C (-1/Command) A8 (-1/Access_0) A6 (-1/Access_0) A5 (-1/Access_0) A4 (-1/Access_0) A3 (-1/Access_0) A2 (-1/Access_0) Architect (-1/Access_0) Combat | -11 -10 -10 -9 -9 -8 -8 -7 -7 -7 -7 -6 -6 -6 -6 -6 -6 -5 -5 -5 -5 -5 -5 -4 -4 -4 -4 -3 -3 -3 -3 -2 -2 -1 -1 -1 -------- Run | Scr Mat Min Mat Min Mat Sto Fac Low Low Dat Pro Fac Low Low Zio Dee Pro Fac Ext Cet Arc Hub Fac Upp Upp Zhi Pro Res Qua Sec Res Tes Acc Com Ac0 Damage Taken 39851 | . 599 662 1147 304 947 997 408 188 65 . 258 353 39 27 . 96 23 2538 455 932 45 177 1945 256 79 . 324 3159 1850 5286 652 1334 1635 3977 9094 Core 2942 | . 91 144 156 11 180 65 53 41 . . . 50 6 . . 34 . 191 90 129 . . 106 . 12 . 15 201 128 217 31 140 45 117 689 Absorbed by Shields 9906 | . . . . . . . . . . . . . . . . . . . 137 . . . . . . . . . . 107 675 1339 730 2153 4765 Reduced by Siege Mode 1194 | . . . . . . . . . . . . . . . . . . . . . 6 7 132 6 . . 8 247 98 115 18 34 80 208 235 Core Remaining (%) 64 | 100 . 6 . 58 . 55 . . . . 86 . . . . . 89 . . . . 59 . . . . 88 . . 42 . 82 . . 43 Volleys Fired 2083 | . 52 31 92 10 94 116 39 8 7 . 14 54 2 4 11 19 2 102 28 38 40 30 100 20 20 . 7 93 53 188 60 89 93 140 427 Largest 4 | . 2 2 3 3 3 3 3 3 1 . 3 3 3 1 1 3 3 4 4 4 4 4 3 4 4 . 4 4 4 4 4 4 4 4 4 Hottest 320 | . 40 80 164 114 119 75 75 75 33 . 75 75 75 33 90 78 78 118 117 119 133 140 120 140 140 . 140 240 150 180 180 180 185 225 320 Shots Fired 5857 | . 102 61 261 32 282 348 116 24 7 . 28 132 6 4 11 31 6 368 102 149 88 108 166 72 34 . 28 314 173 600 233 326 320 506 819 Gun 4916 | . 100 61 231 19 259 348 116 24 . . 21 117 6 . . 23 6 355 100 148 70 108 23 64 24 . 28 187 173 596 233 318 305 503 350 Cannon 767 | . . . 24 13 23 . . . . . . 15 . . 11 8 . 13 . . . . 124 8 . . . 124 . 2 . 3 14 3 382 Launcher 57 | . 2 . 6 . . . . . 7 . 7 . . 4 . . . . 2 1 . . 15 . 10 . . 3 . . . . . . . Special 117 | . . . . . . . . . . . . . . . . . . . . . 18 . 4 . . . . . . 2 . 5 1 . 87 Kinetic 5287 | . 100 27 134 19 259 348 116 24 . . 21 117 6 . . 23 6 355 100 148 70 108 147 72 24 . 28 311 173 596 233 318 305 482 617 Thermal 489 | . . 34 121 13 23 . . . . . . 15 . . 11 8 . 13 . . 18 . 4 . . . . . . 2 . 8 14 3 202 Explosive 31 | . 2 . 6 . . . . . 7 . . . . 4 . . . . 2 1 . . 5 . 1 . . 3 . . . . . . . Electromagnetic 47 | . . . . . . . . . . . 7 . . . . . . . . . . . 10 . 9 . . . . . . . . 21 . Robot Hit Streak 138 | . 11 7 19 11 10 14 11 12 . . 13 17 9 . . 14 3 31 14 20 15 33 31 22 23 . 7 38 30 37 53 47 47 44 138 Robot Miss Streak 11 | . 4 2 4 3 4 4 5 1 . . 1 3 . . . 3 3 4 3 3 4 4 3 4 1 . 2 2 3 4 5 4 11 6 3 Penetration Max 2 | . . . . . 1 . . . . . . . . . . . . 1 1 1 1 1 . . . . . 1 2 2 2 2 2 2 2 Secondary Targets 80 | . 1 . 1 . . 2 1 3 . . 2 . . . . 1 . 6 . 1 . . . . . . 1 2 6 13 2 7 13 16 2 Max Gunslinging Chain 3 | . 1 . 1 . . 1 1 1 . . 1 . . . . 1 . 1 . 1 . . . . . . 1 1 2 1 1 1 3 2 1 Shots Hit Robots 4175 | . 63 46 154 25 175 200 82 21 . . 17 80 6 . . 10 3 265 53 93 63 49 107 40 13 . 17 235 116 437 189 241 223 411 741 Core Hits 2967 | . 33 17 76 8 75 74 26 8 9 . 21 31 3 6 . 7 1 106 44 44 32 40 135 14 20 . 9 90 59 222 155 211 213 349 829 Critical Kills 219 | . 1 . 1 1 . . . . . . . . . . . . . 1 1 . 4 2 . 3 1 . 3 7 21 55 16 14 21 30 37 Critical Parts Destroyed 472 | . . . . . . 1 . . . . 1 . . . . . . 5 . 5 2 10 1 2 1 . 2 13 35 90 31 28 26 44 175 Critical Strikes 1041 | . 1 . 3 1 . 1 . . . . 1 . . . . . . 6 1 5 7 12 7 8 2 . 5 28 56 158 47 45 47 78 522 Burn 2 | . . . 2 . . . . . . . . . . . . . . . . . . . . . . . . . . . . . . . . Meltdown 2 | . . . . 1 . . . . . . . . . . . . . . . . . . . . . . . . . . . . . . 1 Destroy 1017 | . 1 . 1 . . 1 . . . . 1 . . . . . . 6 1 5 7 12 1 8 2 . 5 20 56 158 47 43 47 77 518 Blast 14 | . . . . . . . . . . . . . . . . . . . . . . . 6 . . . . 8 . . . . . . . Corrupt 1 | . . . . . . . . . . . . . . . . . . . . . . . . . . . . . . . . . . 1 . Sever 5 | . . . . . . . . . . . . . . . . . . . . . . . . . . . . . . . . 2 . . 3 Melee Attacks 41 | . . . . . . 1 . . . . . . . . . . . . . . . . . . . . . . 2 20 . 8 7 3 . Kinetic 40 | . . . . . . . . . . . . . . . . . . . . . . . . . . . . . 2 20 . 8 7 3 . Impact . | . . . . . . . . . . . . . . . . . . . . . . . . . . . . . . . . . . . . Slashing 1 | . . . . . . 1 . . . . . . . . . . . . . . . . . . . . . . . . . . . . . Piercing . | . . . . . . . . . . . . . . . . . . . . . . . . . . . . . . . . . . . . Sneak Attacks 1 | . . . . . . . . . . . . . . . . . . . . . . . . . . . . . . 1 . . . . . Combat Hostiles 1 | . . . . . . . . . . . . . . . . . . . . . . . . . . . . . . 1 . . . . . Follow-up Attacks . | . . . . . . . . . . . . . . . . . . . . . . . . . . . . . . . . . . . . Damage Inflicted 122616 | . 1005 540 2862 444 3088 3423 1475 359 379 . 1203 1497 105 384 . 236 61 5949 2091 2513 1415 3067 10104 956 1176 . 298 8228 1293 7825 6369 8824 8535 14560 22352 Guns 89651 | . 784 521 2046 241 2738 3416 1464 359 . . 302 1481 105 . . 236 61 5930 1614 2176 1281 2059 176 837 323 . 298 4236 1293 6989 6301 8325 8003 14501 11555 Cannons 19517 | . . . 185 203 349 . . . . . . . . . . . . . . . . . 6542 119 . . . 3381 . . . . 86 . 8652 Explosions 8912 | . 210 . 585 . . . . . 379 . 901 . . 376 . . . . 396 337 . 987 3313 . 853 . . 575 . . . . . . . Melee 1274 | . . . . . . . . . . . . . . . . . . . . . . . . . . . . . . 646 . 274 295 59 . Ramming 1810 | . 11 19 46 . 1 7 11 . . . . 16 . 8 . . . 19 81 . . 21 61 . . . . 36 . 190 68 138 151 . 926 Kinetic 104820 | . 784 246 1328 241 2738 3416 1464 359 . . 302 1481 105 . . 236 61 5930 1614 2176 1281 2059 6718 956 323 . 298 7617 1293 7635 6301 8599 8298 14318 16643 Thermal 7457 | . . 275 903 203 349 . . . . . 74 . . . . . . . . . 134 . 563 . . . . . . . . 87 86 . 4783 Explosive 4708 | . 210 . 585 . . . . . 379 . . . . 376 . . . . 396 337 . . 1558 . 292 . . 575 . . . . . . . Electromagnetic 3821 | . . . . . . . . . . . 827 . . . . . . . . . . 987 1204 . 561 . . . . . . . . 242 . Impact . | . . . . . . . . . . . . . . . . . . . . . . . . . . . . . . . . . . . . Slashing . | . . . . . . . . . . . . . . . . . . . . . . . . . . . . . . . . . . . . Piercing . | . . . . . . . . . . . . . . . . . . . . . . . . . . . . . . . . . . . . Highest Corruption 25 | . . . 9 9 . 2 4 4 4 4 10 3 3 3 3 . . 2 5 8 18 2 2 2 2 2 2 12 19 25 . . . . . Average Corruption 7 | . . . 7 9 . 2 2 4 4 4 6 2 3 3 3 . . 2 2 8 9 2 1 2 2 2 2 5 16 21 . . . . . Corruption Purged 23 | . . . . . . . . . . . . . . . . . . . 5 . 18 . . . . . . . . . . . . . . Effects 700 | . . . 115 28 . 8 15 19 20 1 26 8 17 16 2 . . 8 15 15 24 2 6 6 12 4 4 35 91 203 . . . . . Message Errors 211 | . . . 39 7 . 5 3 6 6 1 7 . 4 7 1 . . 4 7 5 5 . 3 1 5 . 2 13 23 57 . . . . . Matter Fused 154 | . . . 29 7 . . 4 1 9 . 10 3 4 3 1 . . . . 4 6 . . . . . . 7 29 37 . . . . . Heat Flow Errors 85 | . . . 14 2 . 1 5 5 . . 2 1 2 . . . . 1 2 2 3 1 2 1 2 3 1 3 9 23 . . . . . Energy Discharges 80 | . . . 11 1 . 1 2 6 4 . . 3 . 4 . . . 1 4 1 1 1 . 1 4 1 . 2 10 22 . . . . . Parts Rejected 1 | . . . . . . . . . . . . . . . . . . . . . 1 . . . . . . . . . . . . . . Data Loss (minor) 76 | . . . 9 6 . 1 1 1 1 . 4 1 7 2 . . . 1 1 2 4 . 1 3 . . 1 3 9 18 . . . . . Data Loss (major) 19 | . . . 4 1 . . . . . . 1 . . . . . . . . . . . . . . . . 2 1 10 . . . . . Misfires 25 | . . . 5 3 . . . . . . 1 . . . . . . . . 1 . . . . . . . 1 5 9 . . . . . Alerts 5 | . . . . . . . . . . . . . . . . . . . . . . . . . . . . . . 5 . . . . . Misdirections 2 | . . . . . . . . . . . . . . . . . . . . . . . . . . . . . . 2 . . . . . Weapon Failures 42 | . . . 4 1 . . . . . . 1 . . . . . . 1 1 . 4 . . . 1 . . 4 5 20 . . . . . Overload Shots 6 | . . . . . . . . . . . . . . . 4 . . . . . . . . . . . . . . . . . . 2 . Overflow Damage 879 | . . . 21 11 . . . . 13 . 17 1 . 3 . . . . 6 . 2 77 279 . . . . 241 . 59 4 25 61 . 59 Projectiles 385 | . . . 14 11 . . . . . . . . . . . . . . . . 2 . 170 . . . . 176 . . . . 12 . . Explosions 272 | . . . 7 . . . . . 13 . 17 . . . . . . . 6 . . 77 89 . . . . 63 . . . . . . . Melee 222 | . . . . . . . . . . . . 1 . 3 . . . . . . . . 20 . . . . 2 . 59 4 25 49 . 59 Knockbacks 144 | . . 1 . . . . . . . . . . . . . . . . . . . . 42 . . . . 17 . . . 1 3 . 80 Impact 21 | . . 1 . . . . . . . . . . . . . . . . . . . . 1 . . . . . . . . 1 3 . 15 Kinetic 117 | . . . . . . . . . . . . . . . . . . . . . . . 37 . . . . 15 . . . . . . 65 Secondary 6 | . . . . . . . . . . . . . . . . . . . . . . . 4 . . . . 2 . . . . . . . Self-Inflicted Damage 521 | . 39 . . . . . . . . . . . . . . . . . . . . 66 32 . 14 . . 114 . . . 47 209 . . Shots 9 | . 1 . . . . . . . . . . . . . . . . . . . . 1 1 . 2 . . 2 . . . . 2 . . Rammed 166 | . 4 11 5 . 1 . 2 . . . . 1 . 1 . . . 2 5 . . 3 2 . . . . 2 . 15 1 2 6 . 103 Targets Rammed 174 | . 4 11 6 . 1 1 3 . . . . 1 . 1 . . . 3 7 . . 3 3 . . . . 2 . 15 2 2 6 . 103 Kicked . | . . . . . . . . . . . . . . . . . . . . . . . . . . . . . . . . . . . . Crushed 8 | . . . 1 . . 1 1 . . . . . . . . . . 1 2 . . . 1 . . . . . . . 1 . . . . Highest Temperature 414 | . 30 255 253 414 180 176 247 242 . . 212 233 136 . . . . 143 221 198 194 260 198 100 96 201 226 216 214 267 . . . 17 . Average Temperature 56 | . 14 113 47 110 32 51 105 81 . . 62 70 62 . . . . 20 93 61 40 53 22 14 35 87 115 42 55 75 . . . 17 . Received Heat Transfer 5380 | . 234 366 501 96 369 450 108 117 . . 117 45 12 . . 27 . 369 45 45 . 54 483 9 12 . . 189 168 613 77 85 57 210 522 Effects 4 | . . 2 . . . . . . . . . . . . . . . . . . . 2 . . . . . . . . . . . . . Energy Bleed 1 | . . 1 . . . . . . . . . . . . . . . . . . . . . . . . . . . . . . . . . Interference 3 | . . 1 . . . . . . . . . . . . . . . . . . . 2 . . . . . . . . . . . . . Siege Activations 67 | . . . . . . . . . . . . . . . . . . . . . 3 2 7 1 . . 2 7 6 9 5 6 10 6 3 Total Turns 1079 | . . . . . . . . . . . . . . . . . . . . . 60 19 144 18 . . 12 161 74 129 56 66 129 117 94 Longest Duration 57 | . . . . . . . . . . . . . . . . . . . . . 47 15 52 18 . . 8 37 33 24 17 19 49 53 57 Robots Corrupted 19 | . . . . . . . . . . . 5 . . . . . . . . . . 1 8 . 3 . . . . . . . . 2 . Combat Hostiles 19 | . . . . . . . . . . . 5 . . . . . . . . . . 1 8 . 3 . . . . . . . . 2 . Parts Fried 38 | . . . . . . . . . . . 8 . . . . . . . 2 . . 8 9 . 7 . . . . 2 . . . . 2 Impact Corruptions 18 | . . . . . . . . . . . . 1 . 1 . . . . . . . . 2 . . . . 1 . 1 1 1 2 . 8 Robots Melted 2 | . . . . 1 . . . . . . . . . . . . . . . . . . . . . . . . . . . . . . 1 Combat Hostiles 2 | . . . . 1 . . . . . . . . . . . . . . . . . . . . . . . . . . . . . . 1 Parts Melted 6 | . . . 1 . . . . . . . . . . . . . . . 2 . 1 . . . . . . . . . . . . . 2 Heat Transferred 10257 | . . 625 2240 370 629 . . . . . 50 . . . . . . . . . 444 . 537 . . . . . . . . 185 74 . 5103 Parts Sabotaged 2 | . . . . . . . . . . . . . . . . . . . . . . . . . . . . . . . . . 2 . . Parts Stolen . | . . . . . . . . . . . . . . . . . . . . . . . . . . . . . . . . . . . . Parts Stripped . | . . . . . . . . . . . . . . . . . . . . . . . . . . . . . . . . . . . . Power Chain Reactions 4 | . . . . . . . . . . . 1 . . . . . . . . . . . 3 . . . . . . . . . . . . Missiles Intercepted . | . . . . . . . . . . . . . . . . . . . . . . . . . . . . . . . . . . . . Alert | -11 -10 -10 -9 -9 -8 -8 -7 -7 -7 -7 -6 -6 -6 -6 -6 -6 -5 -5 -5 -5 -5 -5 -4 -4 -4 -4 -3 -3 -3 -3 -2 -2 -1 -1 -1 ------- Run | Scr Mat Min Mat Min Mat Sto Fac Low Low Dat Pro Fac Low Low Zio Dee Pro Fac Ext Cet Arc Hub Fac Upp Upp Zhi Pro Res Qua Sec Res Tes Acc Com Ac0 Peak Influence 1967 | . 177 76 445 222 402 602 872 . . . . 137 . . . . . 954 555 486 355 701 1967 . . . . 1256 690 1389 923 970 892 993 . Initial 780 | . . 10 15 162 17 48 32 . . . . 15 . . . . . . 424 235 194 65 343 . . . . . 651 13 780 320 578 281 . Average 368 | . 52 33 303 134 147 286 241 . . . . 20 . . . . . 331 258 336 241 136 978 . . . . 587 195 544 728 677 522 766 . Maximum Alert Level 5 | . . . 2 1 2 2 3 . . . . . . . . . . 3 2 2 1 3 5 . . . . 4 2 4 3 3 3 4 . Low Security (%) 34 | 100 100 100 16 54 75 26 49 . . . . 100 . . . . . 48 41 . 51 93 . . . . . 29 69 30 . 1 15 . . Level 1 19 | . . . 54 45 23 51 32 . . . . . . . . . . 21 30 70 48 4 26 . . . . 17 8 4 . 6 4 2 . Level 2 17 | . . . 29 . . 22 8 . . . . . . . . . . 2 28 29 . . 26 . . . . 8 22 25 35 36 56 1 . Level 3 14 | . . . . . . . 9 . . . . . . . . . . 27 . . . 1 2 . . . . 31 . 33 64 55 23 19 . Level 4 14 | . . . . . . . . . . . . . . . . . . . . . . . 25 . . . . 12 . 6 . . . 76 . Level 5 . | . . . . . . . . . . . . . . . . . . . . . . . 17 . . . . . . . . . . . . High Security . | . . . . . . . . . . . . . . . . . . . . . . . . . . . . . . . . . . . . Max Security . | . . . . . . . . . . . . . . . . . . . . . . . . . . . . . . . . . . . . Squads Dispatched 123 | . 3 . 3 . 2 6 7 . . . . 5 . . . . . 8 3 . . 2 16 . . . . 6 5 18 6 13 12 8 . Investigation 11 | . 2 . . . 1 . 3 . . . . . . . . . . 1 1 . . . . . . . . . . . 2 1 . . . Extermination 42 | . . . . . . . 2 . . . . 4 . . . . . 1 . . . . 3 . . . . 3 4 8 2 8 4 3 . Reinforcement 34 | . 1 . 3 . 1 4 1 . . . . 1 . . . . . 6 2 . . 1 3 . . . . 2 . 3 . 2 3 1 . Assault 30 | . . . . . . . . . . . . . . . . . . . . . . . 9 . . . . 1 1 7 1 2 5 4 . Garrison 6 | . . . . . . 2 1 . . . . . . . . . . . . . . 1 1 . . . . . . . 1 . . . . Intercept . | . . . . . . . . . . . . . . . . . . . . . . . . . . . . . . . . . . . . Construction Impeded 6 | . . . . . . 1 . . . . . . . . . . . 1 2 . . . 1 . . . . . . . . . 1 . . Haulers Reinforced 11 | . . . . . . . 1 . . . . 1 . . . . . 3 . . . 1 . . . . . 1 . 2 . 1 1 . . Cargo Convoy Interrupts 2 | . . . . . . . 1 . . . . . . . . . . . . . . . . . . . . 1 . . . . . . . Stealth | -11 -10 -10 -9 -9 -8 -8 -7 -7 -7 -7 -6 -6 -6 -6 -6 -6 -5 -5 -5 -5 -5 -5 -4 -4 -4 -4 -3 -3 -3 -3 -2 -2 -1 -1 -1 --------- Run | Scr Mat Min Mat Min Mat Sto Fac Low Low Dat Pro Fac Low Low Zio Dee Pro Fac Ext Cet Arc Hub Fac Upp Upp Zhi Pro Res Qua Sec Res Tes Acc Com Ac0 Distress Signals 59 | . 1 . 3 1 4 1 2 . . . . . . . . . . 7 2 2 . 1 4 . . . . 2 . 5 1 2 2 19 . Communications Jammed 53 | . . . . . . . . . . . . . . . . . . . . . . . 17 . . . . 20 4 12 . . . . . Distress Signals 41 | . . . . . . . . . . . . . . . . . . . . . . . 13 . . . . 15 2 11 . . . . . Times Spotted 880 | . 19 9 43 7 38 42 20 4 2 . 12 11 1 2 . 4 3 44 27 23 19 11 67 8 6 . 4 50 27 93 31 61 52 67 73 Peak Tracking Total 11 | . 4 3 4 3 5 5 3 4 3 . 8 3 1 3 . 3 2 5 6 5 1 5 9 3 5 . 2 11 7 9 5 9 6 5 6 Tactical Retreats 50 | . . . 1 1 2 6 . . . . . . . . . . . 1 2 2 . 2 10 . 1 . . 2 2 5 2 4 . 1 6 Traps | -11 -10 -10 -9 -9 -8 -8 -7 -7 -7 -7 -6 -6 -6 -6 -6 -6 -5 -5 -5 -5 -5 -5 -4 -4 -4 -4 -3 -3 -3 -3 -2 -2 -1 -1 -1 ------- Run | Scr Mat Min Mat Min Mat Sto Fac Low Low Dat Pro Fac Low Low Zio Dee Pro Fac Ext Cet Arc Hub Fac Upp Upp Zhi Pro Res Qua Sec Res Tes Acc Com Ac0 Traps Triggered 38 | . 1 . 6 . 1 3 . . . . . . . . . . . 1 4 . . 1 2 . . . . . . 1 2 1 2 13 . Indirectly . | . . . . . . . . . . . . . . . . . . . . . . . . . . . . . . . . . . . . Trap Hack Attempts . | . . . . . . . . . . . . . . . . . . . . . . . . . . . . . . . . . . . . Triggered . | . . . . . . . . . . . . . . . . . . . . . . . . . . . . . . . . . . . . Disarmed 4 | . . . . . . . . . . . . . . . . . . . . . . . . . . . . . 4 . . . . . . Reprogrammed . | . . . . . . . . . . . . . . . . . . . . . . . . . . . . . . . . . . . . Reused . | . . . . . . . . . . . . . . . . . . . . . . . . . . . . . . . . . . . . Traps Extracted . | . . . . . . . . . . . . . . . . . . . . . . . . . . . . . . . . . . . . Installed . | . . . . . . . . . . . . . . . . . . . . . . . . . . . . . . . . . . . . Triggered 2 | . . . . . . . 1 . . . . . 1 . . . . . . . . . . . . . . . . . . . . . . Machines | -11 -10 -10 -9 -9 -8 -8 -7 -7 -7 -7 -6 -6 -6 -6 -6 -6 -5 -5 -5 -5 -5 -5 -4 -4 -4 -4 -3 -3 -3 -3 -2 -2 -1 -1 -1 ---------- Run | Scr Mat Min Mat Min Mat Sto Fac Low Low Dat Pro Fac Low Low Zio Dee Pro Fac Ext Cet Arc Hub Fac Upp Upp Zhi Pro Res Qua Sec Res Tes Acc Com Ac0 Machines Disabled 91 | . 1 . 1 . 1 7 . . . . . . . . . 1 . 4 3 . 4 9 11 . . . . . 6 13 1 5 4 5 15 Max in Single Turn 6 | . 1 . 1 . 1 1 . . . . . . . . . . . 1 1 . 1 6 5 . . . . . 1 1 1 1 2 1 1 Garrison Access 11 | . . . . . 1 1 2 . . . . . . . . . . . . . . 1 2 . . . . 1 1 1 . . 1 . . Network Hub 1 | . . . . . . . . . . . . . . . . . . . . . . 1 . . . . . . . . . . . . . Machines Sabotaged . | . . . . . . . . . . . . . . . . . . . . . . . . . . . . . . . . . . . . Garrisons Compromised 1 | . . . . . . . 1 . . . . . . . . . . . . . . . . . . . . . . . . . . . . Overloaded Fab Kills . | . . . . . . . . . . . . . . . . . . . . . . . . . . . . . . . . . . . . Fab Network Shutdowns 4 | . . . . . . . 1 . . . . . . . . . . 1 . . . . 1 . . . . . . . . 1 . . . Hacking | -11 -10 -10 -9 -9 -8 -8 -7 -7 -7 -7 -6 -6 -6 -6 -6 -6 -5 -5 -5 -5 -5 -5 -4 -4 -4 -4 -3 -3 -3 -3 -2 -2 -1 -1 -1 --------- Run | Scr Mat Min Mat Min Mat Sto Fac Low Low Dat Pro Fac Low Low Zio Dee Pro Fac Ext Cet Arc Hub Fac Upp Upp Zhi Pro Res Qua Sec Res Tes Acc Com Ac0 Machines Accessed 149 | . 8 . 12 . 7 11 11 . 1 4 . 6 . . 1 . . 1 8 . . 5 6 1 1 4 . 6 12 13 6 9 10 5 1 Terminals 96 | . 5 . 9 . 5 8 6 . . . . 5 . . . . . . 7 . . 4 2 . . . . 3 7 10 5 8 8 4 . Fabricators 7 | . . . . . . . 2 . . . . . . . . . . 1 . . . . 1 . . . . . . . 1 1 1 . . Repair Stations 14 | . 1 . 2 . 1 2 . . . . . 1 . . . . . . 1 . . . 1 . . . . 1 2 1 . . . 1 . Recycling Units 2 | . 2 . . . . . . . . . . . . . . . . . . . . . . . . . . . . . . . . . . Scanalyzers 7 | . . . 1 . . . 1 . . . . . . . . . . . . . . . 1 . . . . 1 2 1 . . . . . Garrison Access 10 | . . . . . 1 1 2 . . . . . . . . . . . . . . 1 1 . . . . 1 1 1 . . 1 . . Total Hacks 581 | . 16 . 37 . 32 33 33 . 1 24 . 13 . . 6 . . 3 25 . . 12 20 1 3 17 . 17 60 52 25 67 64 17 3 Successful 370 | . 12 . 20 . 22 20 18 . 1 24 . 10 . . 6 . . 3 15 . . 8 17 1 3 17 . 9 38 29 13 43 32 6 3 Failed 210 | . 4 . 17 . 10 13 15 . . . . 3 . . . . . . 10 . . 4 3 . . . . 8 22 23 12 24 31 11 . Catastrophic 22 | . . . 1 . 1 1 1 . . . . . . . . . . . 2 . . 1 . . . . . 1 4 2 1 2 3 2 . Database Lockouts 1 | . . . . . . . . . . . . . . . . . . . . . . . . . . . . . . . . . 1 . . Manual 298 | . 14 . 25 . 19 16 25 . . . . 8 . . 1 . . 1 19 1 . 7 6 . . . . 6 36 17 12 25 50 10 . Terminals 400 | . 12 . 30 . 25 27 21 . . . . 11 . . . . . . 23 . . 11 6 . . . . 9 45 36 21 53 56 14 . Fabricators 44 | . . . . . . . 8 . . . . . . . . . . 3 . . . . 8 . . . . . . . 4 14 7 . . Repair Stations 42 | . 2 . 5 . 4 5 . . . . . 2 . . . . . . 2 . . . 2 . . . . 3 6 8 . . . 3 . Recycling Units 2 | . 2 . . . . . . . . . . . . . . . . . . . . . . . . . . . . . . . . . . Scanalyzers 21 | . . . 2 . . . 1 . . . . . . . . . . . . . . . 2 . . . . 4 8 4 . . . . . Garrison Access 17 | . . . . . 3 1 3 . . . . . . . . . . . . . . 1 2 . . . . 1 1 4 . . 1 . . Terminal Hacks 212 | . 3 . 7 . 10 12 9 . 1 24 . 4 . . 6 . . . 8 . . 4 4 1 3 17 . 3 21 13 9 27 20 3 3 Record 19 | . . . . . . . . . . 11 . . . . . . . . . . . . . . 3 5 . . . . . . . . . Part Schematic 23 | . 1 . . . . . . . . 5 . 1 . . 6 . . . . . . . . . . 4 . 1 4 . . . 1 . . Robot Schematic 5 | . . . . . . . . . . 5 . . . . . . . . . . . . . . . . . . . . . . . . . Robot Analysis 5 | . . . . . . . . . . . . . . . . . . . . . . . . . . 4 . . . . . 1 . . . Prototype ID Bank 7 | . . . . . . . . . . 3 . . . . . . . . . . . . . . . 4 . . . . . . . . . Open Door 10 | . . . . . . 3 . . 1 . . . . . . . . . . . . . . 1 . . . . . 3 . . 1 1 . Level Access Points 2 | . . . . . . . . . . . . . . . . . . . . . . 1 . . . . . . . 1 . . . . . Branch Access Points 7 | . . . . . 1 . 1 . . . . 1 . . . . . . . . . . 1 . . . . 1 . . 1 . 1 . . Emergency Access Points 2 | . . . . . . . . . . . . . . . . . . . . . . . . . . . . . 1 . . 1 . . . Machine Index 2 | . . . . . . . 1 . . . . . . . . . . . . . . . . . . . . . . . . . 1 . . Terminal Index 11 | . . . 1 . . 1 1 . . . . . . . . . . . 1 . . 1 . . . . . 1 1 1 1 . 1 1 . Repair Station Index 5 | . . . . . 1 1 . . . . . . . . . . . . . . . . . . . . . . 1 1 . 1 . . . Scanalyzer Index 1 | . . . 1 . . . . . . . . . . . . . . . . . . . . . . . . . . . . . . . . Alert Level 31 | . 2 . 1 . 2 2 2 . . . . . . . . . . . 3 . . . . . . . . . 3 3 2 6 4 1 . Unreport Threat 39 | . . . . . 2 4 4 . . . . 1 . . . . . . 3 . . . 2 . . . . . 6 2 5 4 6 . . Locate Traps 5 | . . . . . 1 . . . . . . . . . . . . . . . . . 1 . . . . . . . . 3 . . . Disarm Traps 1 | . . . . . . . . . . . . . . . . . . . . . . . . . . . . . 1 . . . . . . Recall Extermination 1 | . . . . . . . . . . . . . . . . . . . . . . . . . . . . . . . . . 1 . . Recall Reinforcements 1 | . . . . . . 1 . . . . . . . . . . . . . . . . . . . . . . . . . . . . . Recall Assault 2 | . . . . . . . . . . . . . . . . . . . . . . . . . . . . . 1 . . . 1 . . Hauler Manifests 10 | . . . 1 . 2 . . . . . . 1 . . . . . . 1 . . 1 . . . . . . . 1 . 2 1 . . Registered Prototypes 1 | . . . . . . . . . . . . . . . . . . . . . . . . . . . . . . . . 1 . . . Zone Layout 17 | . . . 3 . 1 . . . . . . . . . . . . . . . . 1 . . . . . . 3 1 . 6 2 . . Protovariant Controls 2 | . . . . . . . . . . . . . . . . . . . . . . . . . . . . . . . . 2 . . . Gate Test 138-A 1 | . . . . . . . . . . . . . . . . . . . . . . . . . . . . . . . . . . . 1 Gate Test 138-B 1 | . . . . . . . . . . . . . . . . . . . . . . . . . . . . . . . . . . . 1 Gate Test 138-END 1 | . . . . . . . . . . . . . . . . . . . . . . . . . . . . . . . . . . . 1 Fabricator Hacks 16 | . . . . . . . 2 . . . . . . . . . . 2 . . . . 3 . . . . . . . 2 5 2 . . Load Schematic 7 | . . . . . . . 1 . . . . . . . . . . 1 . . . . 1 . . . . . . . 1 2 1 . . Build 9 | . . . . . . . 1 . . . . . . . . . . 1 . . . . 2 . . . . . . . 1 3 1 . . Repair Station Hacks 32 | . 2 . 3 . 4 4 . . . . . 2 . . . . . . 2 . . . 2 . . . . 1 3 8 . . . 1 . Scan Component 18 | . 1 . 2 . 2 2 . . . . . 1 . . . . . . 1 . . . 1 . . . . 1 2 4 . . . 1 . Repair 14 | . 1 . 1 . 2 2 . . . . . 1 . . . . . . 1 . . . 1 . . . . . 1 4 . . . . . Recycling Unit Hacks . | . . . . . . . . . . . . . . . . . . . . . . . . . . . . . . . . . . . . Scanalyzer 15 | . . . 2 . . . . . . . . . . . . . . . . . . . 2 . . . . 2 7 2 . . . . . Insert Component 8 | . . . 1 . . . . . . . . . . . . . . . . . . . 1 . . . . 1 4 1 . . . . . Analyze 7 | . . . 1 . . . . . . . . . . . . . . . . . . . 1 . . . . 1 3 1 . . . . . Garrison Access Hacks 10 | . . . . . 1 1 2 . . . . . . . . . . . . . . 1 1 . . . . 1 1 1 . . 1 . . Seal Access 10 | . . . . . 1 1 2 . . . . . . . . . . . . . . 1 1 . . . . 1 1 1 . . 1 . . Unauthorized Hacks 85 | . 7 . 8 . 7 3 5 . . . . 4 . . . . . 1 5 . . 3 5 . . . . 2 6 5 2 11 9 2 . Terminals 69 | . 5 . 8 . 7 3 3 . . . . 4 . . . . . . 5 . . 3 1 . . . . 2 6 5 2 7 6 2 . Track 1 | . . . . . 1 . . . . . . . . . . . . . . . . . . . . . . . . . . . . . . Assimilate 3 | . . . . . 1 . . . . . . . . . . . . . . . . . . . . . . . . 2 . . . . . Botnet 63 | . 5 . 7 . 5 3 3 . . . . 4 . . . . . . 5 . . 3 1 . . . . 2 5 3 2 7 6 2 . Operators 2 | . . . 1 . . . . . . . . . . . . . . . . . . . . . . . . . 1 . . . . . . Fabricators 14 | . . . . . . . 2 . . . . . . . . . . 1 . . . . 4 . . . . . . . . 4 3 . . Report 3 | . . . . . . . . . . . . . . . . . . . . . . . 1 . . . . . . . . 1 1 . . Prioritize 5 | . . . . . . . 1 . . . . . . . . . . 1 . . . . 1 . . . . . . . . 1 1 . . Siphon 3 | . . . . . . . . . . . . . . . . . . . . . . . 1 . . . . . . . . 1 1 . . Haulers 3 | . . . . . . . 1 . . . . . . . . . . . . . . . 1 . . . . . . . . 1 . . . Repair Stations . | . . . . . . . . . . . . . . . . . . . . . . . . . . . . . . . . . . . . Recycling Units 2 | . 2 . . . . . . . . . . . . . . . . . . . . . . . . . . . . . . . . . . Tunnel 2 | . 2 . . . . . . . . . . . . . . . . . . . . . . . . . . . . . . . . . . Scanalyzers . | . . . . . . . . . . . . . . . . . . . . . . . . . . . . . . . . . . . . Garrison Access . | . . . . . . . . . . . . . . . . . . . . . . . . . . . . . . . . . . . . Data Cores Recovered 3 | . . . . . 1 . . . . . . . . . . . . . 1 . . . . . . . . . . 1 . . . . . Used 2 | . . . . . 1 . . . . . . . . . . . . . . . . . . . . . . . . 1 . . . . . Hacking Detections 109 | . 4 . 11 . 6 9 7 . . . . 6 . . . . . 1 8 1 . 4 4 . . . . 5 9 10 6 6 8 4 . Full Trace Events 6 | . . . . . . . 3 . . . . . . . . . . . 1 . . . . . . . . . . . 2 . . . . Feedback Events 3 | . . . . . . . 2 . . . . . . . . . . . . . . . . . . . . . . . 1 . . . . Corruption 3 | . . . . . . . 2 . . . . . . . . . . . . . . . . . . . . . . . 1 . . . . Feedback Blocked . | . . . . . . . . . . . . . . . . . . . . . . . . . . . . . . . . . . . . Robot Schematics Acquired 5 | . . . . . . . . . . 5 . . . . . . . . . . . . . . . . . . . . . . . . . Robots Built . | . . . . . . . . . . . . . . . . . . . . . . . . . . . . . . . . . . . . Matter . | . . . . . . . . . . . . . . . . . . . . . . . . . . . . . . . . . . . . Time . | . . . . . . . . . . . . . . . . . . . . . . . . . . . . . . . . . . . . Total Robot Build Rating . | . . . . . . . . . . . . . . . . . . . . . . . . . . . . . . . . . . . . Part Schematics Acquired 29 | . 1 . 1 . . . . . . 5 . 1 . . 6 . . . . . . . 1 . . 4 . 2 6 1 . . 1 . . Parts Built 10 | . . . . . . . 1 . . . . . . . . . . 1 . . . . 2 . . . . . . . 2 3 1 . . Matter 3055 | . . . . . . . 384 . . . . . . . . . . 318 . . . . 672 . . . . . . . 256 1008 417 . . Time 752 | . . . . . . . 102 . . . . . . . . . . 169 . . . . 153 . . . . . . . 42 212 74 . . Total Part Build Rating 81 | . . . . . . . 8 . . . . . . . . . . 6 . . . . 16 . . . . . . . 16 26 9 . . Parts Repaired 14 | . 1 . 1 . 2 2 . . . . . 1 . . . . . . 1 . . . 1 . . . . . 1 4 . . . . . Time 650 | . 26 . 136 . 64 48 . . . . . 32 . . . . . . 13 . . . 68 . . . . . 39 224 . . . . . Parts Recycled . | . . . . . . . . . . . . . . . . . . . . . . . . . . . . . . . . . . . . Recycled Matter . | . . . . . . . . . . . . . . . . . . . . . . . . . . . . . . . . . . . . Retrieved Matter . | . . . . . . . . . . . . . . . . . . . . . . . . . . . . . . . . . . . . Retrieved Components . | . . . . . . . . . . . . . . . . . . . . . . . . . . . . . . . . . . . . Parts Scanalyzed 6 | . . . 1 . . . . . . . . . . . . . . . . . . . 1 . . . . 1 2 1 . . . . . Part Schematics Acquired 6 | . . . 1 . . . . . . . . . . . . . . . . . . . 1 . . . . 1 2 1 . . . . . Parts Damaged 4 | . . . 1 . . . . . . . . . . . . . . . . . . . 1 . . . . . 1 1 . . . . . Bothacking | -11 -10 -10 -9 -9 -8 -8 -7 -7 -7 -7 -6 -6 -6 -6 -6 -6 -5 -5 -5 -5 -5 -5 -4 -4 -4 -4 -3 -3 -3 -3 -2 -2 -1 -1 -1 ------------ Run | Scr Mat Min Mat Min Mat Sto Fac Low Low Dat Pro Fac Low Low Zio Dee Pro Fac Ext Cet Arc Hub Fac Upp Upp Zhi Pro Res Qua Sec Res Tes Acc Com Ac0 Used RIF Installer . | . . . . . . . . . . . . . . . . . . . . . . . . . . . . . . . . . . . . Robots Hacked 2 | . . . . . . . . . . . . . . . . . . . . . . . . . . . . . . 1 . . 1 . . Non-combat . | . . . . . . . . . . . . . . . . . . . . . . . . . . . . . . . . . . . . Combat . | . . . . . . . . . . . . . . . . . . . . . . . . . . . . . . . . . . . . Robot Hacks Applied . | . . . . . . . . . . . . . . . . . . . . . . . . . . . . . . . . . . . . Manual 2 | . . . . . . . . . . . . . . . . . . . . . . . . . . . . . . 1 . . 1 . . Relay Couplers Released 4 | . . . . . . . . . . . . . . . . . . . . . . 2 2 . . . . . . . . . . . . Machine Destruction 4 | . . . . . . . . . . . . . . . . . . . . . . 2 2 . . . . . . . . . . . . Robots Rewired 12 | . . . . . . . . . . . . . . . . . . . 12 . . . . . . . . . . . . . . . . Allies Hacked 2 | . . . . . . . . . . . . . . . . . . . . . . . . . . . . . . 2 . . . . . Hacks Repelled . | . . . . . . . . . . . . . . . . . . . . . . . . . . . . . . . . . . . . Allies | -11 -10 -10 -9 -9 -8 -8 -7 -7 -7 -7 -6 -6 -6 -6 -6 -6 -5 -5 -5 -5 -5 -5 -4 -4 -4 -4 -3 -3 -3 -3 -2 -2 -1 -1 -1 -------- Run | Scr Mat Min Mat Min Mat Sto Fac Low Low Dat Pro Fac Low Low Zio Dee Pro Fac Ext Cet Arc Hub Fac Upp Upp Zhi Pro Res Qua Sec Res Tes Acc Com Ac0 Total Allies 67 | . . 3 . 2 . 10 18 . . . 1 . . . 7 . . . 18 5 . . . . . . . . . 2 . . 1 . . Largest Group 27 | . . 3 . 2 . 10 27 . . . 1 . . . 7 7 3 2 9 9 . . . . . . . . . 1 . . 1 1 . Highest-Rated Group 910 | . . 40 . 41 . 173 910 . . . 95 . . . 303 303 204 190 348 380 . . . . . . . . . 214 . . 222 222 . Highest-Rated Ally 222 | . . 16 . 31 . 29 74 . . . 95 . . . 95 95 95 95 156 150 . . . . . . . . . 214 . . 222 222 . Total Orders . | . . . . . . . . . . . . . . . . . . . . . . . . . . . . . . . . . . . . Ally Attacks 470 | . . 15 . 7 . 14 99 . . . 15 . . . . 56 30 27 107 77 . . . . . . . . . 6 . . 5 12 . Total Damage 12110 | . . 181 . 127 . 179 1287 . . . 319 . . . . 910 920 896 2503 2147 . . . . . . . . . 733 . . 391 1517 . Kills 78 | . . 4 . 3 . 2 13 . . . 1 . . . . 9 8 3 22 7 . . . . . . . . . 1 . . 4 1 . Allies Corrupted . | . . . . . . . . . . . . . . . . . . . . . . . . . . . . . . . . . . . . Allies Melted . | . . . . . . . . . . . . . . . . . . . . . . . . . . . . . . . . . . . . Intel | -11 -10 -10 -9 -9 -8 -8 -7 -7 -7 -7 -6 -6 -6 -6 -6 -6 -5 -5 -5 -5 -5 -5 -4 -4 -4 -4 -3 -3 -3 -3 -2 -2 -1 -1 -1 ------- Run | Scr Mat Min Mat Min Mat Sto Fac Low Low Dat Pro Fac Low Low Zio Dee Pro Fac Ext Cet Arc Hub Fac Upp Upp Zhi Pro Res Qua Sec Res Tes Acc Com Ac0 Robot Analysis Total 5 | . . . . . . . . . . . . . . . . . . . . . . . . . . 4 . . . . . 1 . . . Derelict Logs Recovered 12 | . . 2 . 1 . . . 1 2 . 1 . 1 . 2 . 1 . . . . . . 1 . . . . . . . . . . . Drone Launches . | . . . . . . . . . . . . . . . . . . . . . . . . . . . . . . . . . . . . Drone Recoveries . | . . . . . . . . . . . . . . . . . . . . . . . . . . . . . . . . . . . . Exploration | -11 -10 -10 -9 -9 -8 -8 -7 -7 -7 -7 -6 -6 -6 -6 -6 -6 -5 -5 -5 -5 -5 -5 -4 -4 -4 -4 -3 -3 -3 -3 -2 -2 -1 -1 -1 ------------- Run | Scr Mat Min Mat Min Mat Sto Fac Low Low Dat Pro Fac Low Low Zio Dee Pro Fac Ext Cet Arc Hub Fac Upp Upp Zhi Pro Res Qua Sec Res Tes Acc Com Ac0 Turns Passed 69106 | 62 2214 1169 4785 847 1701 2270 2198 1111 1006 201 1034 1836 1173 972 2424 2612 877 1249 1991 660 793 553 1614 708 988 275 475 1239 2048 3939 1100 2063 2672 7021 11226 Spaces Moved 25627 | 33 797 350 1549 274 676 691 702 420 373 78 333 558 446 364 909 957 320 300 702 198 176 236 559 371 549 145 278 443 967 1556 458 852 1214 2707 4086 Core 25 | 16 . . . . . . . . . . . . . . . . . . . . . . . . . . . . . . . . . . 9 Treads 25595 | 17 797 350 1549 274 676 691 702 420 373 78 333 558 446 364 909 957 320 300 702 198 176 236 559 371 549 145 278 443 967 1552 458 852 1214 2707 4074 Legs . | . . . . . . . . . . . . . . . . . . . . . . . . . . . . . . . . . . . . Wheels 3 | . . . . . . . . . . . . . . . . . . . . . . . . . . . . . . . . . . . 3 Hover . | . . . . . . . . . . . . . . . . . . . . . . . . . . . . . . . . . . . . Flight . | . . . . . . . . . . . . . . . . . . . . . . . . . . . . . . . . . . . . Fastest Speed 50 | 50 160 260 160 260 155 255 260 260 260 260 260 260 260 260 260 260 260 260 160 160 160 160 160 160 160 160 160 160 160 160 160 160 160 147 50 Average Speed 216 | 158 237 260 260 260 177 259 260 260 260 260 260 260 260 260 260 260 260 260 225 206 160 160 160 160 160 160 160 160 160 160 160 160 169 232 223 Slowest Speed 360 | 200 260 260 360 260 260 260 260 260 260 260 260 260 260 260 260 260 260 263 262 260 160 160 260 160 160 160 160 160 160 260 160 260 260 260 270 Overloaded Moves . | . . . . . . . . . . . . . . . . . . . . . . . . . . . . . . . . . . . . Propulsion Burnouts . | . . . . . . . . . . . . . . . . . . . . . . . . . . . . . . . . . . . . Robots Hopped . | . . . . . . . . . . . . . . . . . . . . . . . . . . . . . . . . . . . . Cave-ins Triggered 1 | . . . . . . . . . . . . . . . . . . 1 . . . . . . . . . . . . . . . . . Teleports 7 | . . . . . . . . . . . . . . . . . . . . . . . . . . . . 1 . 3 . 1 . 1 1 Spacefolds 1 | . . . . . . . . . . . . . . . . . . . . . . . . . . . . . . 1 . . . . . Exploration Rate (%) 58 | 3 98 66 94 60 65 93 20 68 55 68 47 14 72 57 85 84 58 11 84 57 76 23 24 54 70 60 46 17 81 79 16 90 30 71 97 Regions Visited 35 Branch Regions 25 Pre-discovered Areas 9 | . 2 1 . 1 . . . . 1 1 . . . . . . . . . . . . . . . 3 . . . . . . . . . Known Exits Taken 29 | . . . 1 . 1 . 1 1 1 1 1 1 1 1 1 1 1 1 1 1 1 1 1 1 1 1 1 1 1 1 1 1 1 . . Unknown Exits Taken 6 | 1 1 1 . 1 . 1 . . . . . . . . . . . . . . . . . . . . . . . . . . . 1 . Scrap Searched 20 | . . 1 . 2 . . . 1 1 . 2 . 2 2 3 . 2 . . . . . . 2 2 . . . . . . . . . . Spaces Dug 184 | . 5 . 36 . . . . . 8 . . 5 . . 1 1 . 10 . . . 3 20 18 4 . . 16 3 25 . 7 15 1 6 Terrain Destroyed 1112 | . 7 . 65 . 2 . . . 37 . 5 5 . 33 1 1 1 13 21 24 13 213 148 45 21 . 8 85 15 72 14 38 37 12 176 Melee . | . . . . . . . . . . . . . . . . . . . . . . . . . . . . . . . . . . . . Projectile 446 | . . . . . 2 . . . . . . 5 . . 1 1 1 12 2 9 13 25 67 45 13 . 8 69 7 35 . 18 12 . 101 AOE 471 | . 7 . 65 . . . . . 37 . 5 . . 33 . . . . 17 15 . 186 81 . 8 . . 15 . . . . 2 . . Terrain Rammed 1 | . . . . . . . . . . . . . . . . . . . . . . . . . . . . . . . . 1 . . . Walls Destroyed . | . . . . . . . . . . . . . . . . . . . . . . . . . . . . . . . . . . . . Machines Disabled 1 | . . . . . . . . . . . . . . . . . . . . . . . . . . . . . . . . 1 . . . Actions | -11 -10 -10 -9 -9 -8 -8 -7 -7 -7 -7 -6 -6 -6 -6 -6 -6 -5 -5 -5 -5 -5 -5 -4 -4 -4 -4 -3 -3 -3 -3 -2 -2 -1 -1 -1 --------- Run | Scr Mat Min Mat Min Mat Sto Fac Low Low Dat Pro Fac Low Low Zio Dee Pro Fac Ext Cet Arc Hub Fac Upp Upp Zhi Pro Res Qua Sec Res Tes Acc Com Ac0 Total 35625 | 40 1016 532 2106 388 1044 1052 1026 431 401 77 486 883 457 383 959 1059 364 577 1048 382 623 348 1156 453 640 188 296 790 1355 2582 719 1334 1669 3220 5541 Wait 5942 | . 133 131 366 99 200 188 218 2 18 . 122 223 8 11 35 68 39 124 219 111 377 70 408 52 47 24 12 154 205 600 169 286 283 187 753 Move 25587 | 32 796 349 1548 273 675 690 701 419 372 77 332 557 445 363 908 956 319 298 701 197 175 235 558 370 548 144 277 442 966 1552 457 851 1213 2706 4085 Hop . | . . . . . . . . . . . . . . . . . . . . . . . . . . . . . . . . . . . . Pick Up 322 | 2 17 5 31 2 17 13 12 . . . 3 7 . . 1 . . 9 6 7 6 2 14 4 5 1 . 18 24 29 5 11 13 26 32 Fast Attach 290 | 6 3 . 10 . 11 9 11 . . . 2 7 . . . 2 1 4 6 8 7 . 7 . 5 9 . 20 18 39 3 8 8 38 48 Attach 166 | . . 4 9 1 4 1 3 . . . . 3 . . . . . 8 1 3 . . 11 4 1 1 . 13 10 22 2 13 8 20 24 Detach 49 | . . . . . . . . . . . . 2 . . . . . . . 1 . . 8 . . . . 3 3 7 . 11 1 8 5 Swap 446 | . 4 . 19 1 13 12 19 2 4 . 8 17 2 4 3 9 1 22 27 5 9 6 25 . 5 . . 21 35 66 18 35 23 17 14 Drop 464 | . 7 1 25 2 29 21 20 . . . 5 12 . . 1 5 2 6 16 12 9 2 22 3 9 9 . 24 39 44 3 19 14 53 50 Fire 2083 | . 52 31 92 10 94 116 39 8 7 . 14 54 2 4 11 19 2 102 28 38 40 30 100 20 20 . 7 93 53 188 60 89 93 140 427 Melee 41 | . . . . . . 1 . . . . . . . . . . . . . . . . . . . . . . 2 20 . 8 7 3 . Ram 1 | . . . . . . . . . . . . . . . . . . . . . . . . . . . . . . . . 1 . . . Kick . | . . . . . . . . . . . . . . . . . . . . . . . . . . . . . . . . . . . . Crush 174 | . 4 11 6 . 1 1 3 . . . . 1 . 1 . . . 3 7 . . 3 3 . . . . 2 . 15 2 2 6 . 103 Escape Stasis 26 | . . . . . . . . . . . . . . . . . . 1 3 . . . . . . . . . . . . . . 22 . Rewire 34 | . . . . . . . . . . . . . . . . . . . 34 . . . . . . . . . . . . . . . . Trap . | . . . . . . . . . . . . . . . . . . . . . . . . . . . . . . . . . . . . Miscellaneous . | . . . . . . . . . . . . . . . . . . . . . . . . . . . . . . . . . . . . Route ------- -11/Scrapyard -10/Materials (discovered 4 exits: *Mat x3 / [*Min]) -10/Mines (discovered 2 exits: *Mat x2) -9/Materials (discovered 4 exits: *Mat x3 / *Min) -9/Mines -8/Materials (discovered 5 exits: *Fac x3 / *Sto x2) -8/Storage -7/Factory (discovered 3 exits: *Fac / *Low x2) -7/Lower Caves -7/Lower Caves (discovered 2 exits: Fac / *Dat) -7/Data Miner -6/Proximity Caves -6/Factory (discovered 2 exits: *Low x2) -6/Lower Caves -6/Lower Caves -6/Zion (discovered 2 exits: *Dee / [*Pro]) -6/Deep Caves -5/Proximity Caves -5/Factory (discovered 3 exits: Fac / Upp / *Ext) -5/Extension (discovered 2 exits: *Fac / *Cet) -5/Cetus (discovered 2 exits: *Fac / *Arc) -5/Archives (discovered 3 exits: *Fac / *Hub x2) -5/Hub_04(d) (discovered 4 exits: *Fac x4) -4/Factory (discovered 4 exits: *Res / *Upp x2 / Arm) -4/Upper Caves -4/Upper Caves -4/Zhirov -3/Proximity Caves -3/Research (discovered 2 exits: *Qua x2) -3/Quarantine (discovered 2 exits: *Res / *Sec) -3/Section 7 -2/Research (discovered 2 exits: *Tes x2) -2/Testing -1/Access (discovered 2 exits: *Sur / *Com) -1/Command (discovered 3 exits: *Sur x2 / *Ac0) -1/Access_0 Near Former Tau Ceti IV History --------- Turn | Location | Event 7 | -11/Scrapyard | Discovered new exit (range 16) 63 | -11/Scrapyard | Entered Materials 308 | -10/Materials | Build established: Mutant 402 | -10/Materials | Discovered new exit (range 12) 905 | -10/Materials | Repaired Lgt. Treads 940 | -10/Materials | Discovered new exit (range 16) 1631 | -10/Materials | Discovered new exit (range 6) 1791 | -10/Materials | Discovered new exit (range 16) 2277 | -10/Materials | Entered Mines 2365 | -10/Mines | Assisted by bots powering up and referring to "LRC-V3" 2423 | -10/Mines | Learned 2 Materials zone layouts 2461 | -10/Mines | Received a Rocket Launcher from a helpful Derelict 2537 | -10/Mines | Learned location of Storage (-8) 2674 | -10/Mines | Discovered new exit (range 8) 2995 | -10/Mines | Core integrity fell below 50% 3026 | -10/Mines | Core integrity fell below 20% 3129 | -10/Mines | Discovered new exit (range 14) 3187 | -10/Mines | Excavation squad dispatched 3187 | -10/Mines | A large section of the Mines collapsed 3375 | -10/Mines | Found a damaged Exp. Sensor Array with a note attached 3380 | -10/Mines | Found Prototype Device 3446 | -10/Mines | Entered Materials 3446 | -9/Materials | Evolved 2 slots: Utility x1, Weapon x1 3447 | -9/Materials | Identified exit to Mines 4071 | -9/Materials | Build established: Tank 4503 | -9/Materials | Build established: Scavenger-Tank 4549 | -9/Materials | Discovered new exit (range 14) 5105 | -9/Materials | Identified Exp. Sensor Array 5298 | -9/Materials | Build established: Tank 5595 | -9/Materials | Repaired Broken Exp. Sensor Array? 5793 | -9/Materials | Discovered new exit (range 9) 6739 | -9/Materials | Discovered new exit (range 12) 8231 | -9/Materials | Entered Mines 8301 | -9/Mines | Assembled infested the area 8306 | -9/Mines | Assisted by a Guerilla fighting off Assembled 8794 | -9/Mines | Found a hidden stash of uninstalled traps 8859 | -9/Mines | Learned location of Zion (-6) 9041 | -9/Mines | Discovered new exit (range 7) 9078 | -9/Mines | Entered Materials 9078 | -8/Materials | Evolved 2 slots: Propulsion x1, Utility x1 9459 | -8/Materials | Repaired Imp. Treads 9492 | -8/Materials | Repaired Imp. Treads 9570 | -8/Materials | Build established: Scavenger-Tank 9638 | -8/Materials | Discovered new exit (range 16) 9920 | -8/Materials | Discovered new exit (range 12) 9952 | -8/Materials | Identified exit to Storage 10146 | -8/Materials | Build established: Tank 10503 | -8/Materials | Discovered new exit (range 17) 10779 | -8/Materials | Entered Storage 11137 | -8/Storage | Repaired Imp. Treads 11348 | -8/Storage | Garrison activated, responded to threat 11471 | -8/Storage | Garrison activated, responded to threat 12298 | -8/Storage | Discovered new exit (range 9) 12649 | -8/Storage | Assisted by bots powering up and referring to "LRC-V3" 12953 | -8/Storage | Build established: Commander-Tank 12955 | -8/Storage | Repaired Imp. Treads 13049 | -8/Storage | Entered Factory 13049 | -7/Factory | Accompanied by 10 allies 13049 | -7/Factory | Evolved 2 slots: Utility x2 13335 | -7/Factory | Build established: Commander-Skirmisher 13667 | -7/Factory | Fabricated Exp. Sensor Array (x1) 13836 | -7/Factory | Local fabrication network quarantined 13839 | -7/Factory | Cargo convoy interrupted 14072 | -7/Factory | Identified exit to Lower Caves 14082 | -7/Factory | Garrison activated, responded to threat 14900 | -7/Factory | Discovered new exit (range 15) 14978 | -7/Factory | Identified exit to Factory 15247 | -7/Factory | Entered Lower Caves 15454 | -7/Lower Caves | Build established: Hacker-Skirmisher 15495 | -7/Lower Caves | Learned Factory emergency access door positions 16045 | -7/Lower Caves | Encountered a Warlord checkpoint 16132 | -7/Lower Caves | Discovered new exit (range 5) 16142 | -7/Lower Caves | Identified exit to Lower Caves 16358 | -7/Lower Caves | Entered another Lower Caves area 17351 | -7/Lower Caves | Discovered new exit (range 6) 17361 | -7/Lower Caves | Identified exit to Data Miner 17364 | -7/Lower Caves | Entered Data Miner 17364 | -7/Data Miner | Discovered new exit (range 6) 17414 | -7/Data Miner | Met Data Miner 17466 | -7/Data Miner | Learned location of Section 7 (-3) 17466 | -7/Data Miner | Acquired the access code to Warlord's prototype stash 17502 | -7/Data Miner | Received God Mode back door access code from Data Miner 17562 | -7/Data Miner | Identified exit to Proximity Caves 17565 | -7/Data Miner | Entered Proximity Caves 17728 | -6/Proximity Caves | Escorted by Enhanced Grunt 18124 | -6/Proximity Caves | Destroyed 8 combat bots 18129 | -6/Proximity Caves | System corruption reached 10% 18241 | -6/Proximity Caves | Discovered exit to Factory (range 12) 18375 | -6/Proximity Caves | Learned Factory interactive machine intel 18389 | -6/Proximity Caves | Received a Behemoth hack from an annoying Tinkerer 18599 | -6/Proximity Caves | Entered Factory 18599 | -6/Factory | Evolved 2 slots: Propulsion x1, Utility x1 18601 | -6/Factory | Loaded intel: 46 interactive machine locations 19544 | -6/Factory | Identified exit to Lower Caves 20363 | -6/Factory | Repaired Imp. Treads 20435 | -6/Factory | Entered Lower Caves 21062 | -6/Lower Caves | Attracted the attention of an 0b10 checkpoint 21587 | -6/Lower Caves | Discovered new exit (range 8) 21605 | -6/Lower Caves | Identified exit to Lower Caves 21608 | -6/Lower Caves | Entered another Lower Caves area 22274 | -6/Lower Caves | Discovered new exit (range 8) 22288 | -6/Lower Caves | Encountered a Warlord checkpoint 22290 | -6/Lower Caves | Identified exit to Zion 22580 | -6/Lower Caves | Entered Zion 22601 | -6/Zion | Learned Factory garrison access intel 22705 | -6/Zion | System corruption cleaned by Quarantine Array 22856 | -6/Zion | Discovered new exit (range 12) 23220 | -6/Zion | Learned location of 1 exit from Factory 23787 | -6/Zion | Given A8's code to call for help 24835 | -6/Zion | Gained Derelict followers 24908 | -6/Zion | Enhanced Grunt warped into view, answering call for help 24928 | -6/Zion | Enhanced Grunt warped into view, answering call for help 24979 | -6/Zion | Discovered new exit (range 3) 24985 | -6/Zion | Identified exit to Deep Caves 24985 | -6/Zion | Saw the warning signs outside the Deep Caves entrance 25004 | -6/Zion | Entered Deep Caves 25004 | -6/Deep Caves | Accompanied by 7 allies 25354 | -6/Deep Caves | Build established: Hacker-Gunner 25654 | -6/Deep Caves | Attacked by Z-Imprinter 25664 | -6/Deep Caves | Allies destroyed Z-Imprinter 25830 | -6/Deep Caves | Z-Facility disabled 25991 | -6/Deep Caves | Build established: Scavenger-Skirmisher 26954 | -6/Deep Caves | Discovered new exit (range 6) 27610 | -6/Deep Caves | Identified exit to Proximity Caves 27616 | -6/Deep Caves | Entered Proximity Caves 27616 | -5/Proximity Caves | Accompanied by 3 allies 28242 | -5/Proximity Caves | Discovered new exit (range 8) 28262 | -5/Proximity Caves | Identified exit to Factory 28493 | -5/Proximity Caves | Entered Factory 28493 | -5/Factory | Accompanied by 2 allies 28493 | -5/Factory | Evolved 2 slots: Utility x1, Weapon x1 28494 | -5/Factory | Identified exit to Upper Caves 28494 | -5/Factory | Identified exit to Extension 28495 | -5/Factory | Identified exit to Factory 28496 | -5/Factory | Loaded intel: 4 garrison access locations 28790 | -5/Factory | Crushed by falling debris 29098 | -5/Factory | Build established: Scavenger-Gunner 29257 | -5/Factory | Fabricated Mni. Smartbomb Launcher (x1) 29303 | -5/Factory | Lost 3 parts (2n1u) 29393 | -5/Factory | Local fabrication network quarantined 29742 | -5/Factory | Entered Extension 29810 | -5/Extension | Incoming investigation squad redirected 29830 | -5/Extension | Rescued a captive Derelict 29830 | -5/Extension | Rescued a captive Derelict 30114 | -5/Extension | Repaired Lgt. Treads 30200 | -5/Extension | Rescued A7 30473 | -5/Extension | Rescued a captive Derelict 30728 | -5/Extension | Build established: Scavenger-Skirmisher 30967 | -5/Extension | Spotted B-75 Beast 30977 | -5/Extension | Destroyed B-75 Beast 30987 | -5/Extension | Spotted B-75 Beast 30993 | -5/Extension | Allies destroyed B-75 Beast 31017 | -5/Extension | Disrupted transfer network 31215 | -5/Extension | Rescued a captive Derelict 31216 | -5/Extension | Rescued a captive Derelict 31696 | -5/Extension | Discovered exit to Factory (range 10) 31697 | -5/Extension | Discovered new exit (range 6) 31705 | -5/Extension | Identified exit to Cetus 31733 | -5/Extension | Entered Cetus 31733 | -5/Cetus | Accompanied by 9 allies (A7) 31738 | -5/Cetus | Acquired a Cetus Manufacturing Module code from A7 31761 | -5/Cetus | Spotted Cetus Guard 31761 | -5/Cetus | Spotted Cetus Guard 31763 | -5/Cetus | Spotted Cetus Guard 31765 | -5/Cetus | Spotted Cetus Guard 31768 | -5/Cetus | Allies destroyed Cetus Guard 31773 | -5/Cetus | Destroyed Cetus Guard 31778 | -5/Cetus | Destroyed Cetus Guard 31783 | -5/Cetus | Allies destroyed Cetus Guard 31816 | -5/Cetus | Extracted ID and sensor layout for unrecognized location from A7's data core 31853 | -5/Cetus | Found Prototype Protection 31853 | -5/Cetus | Identified Med. Regenerative Plating 31975 | -5/Cetus | Started Cetus Manufacturing Module 32000 | -5/Cetus | Manufactured an Enhanced Grunt 32025 | -5/Cetus | Manufactured an Enhanced Grunt 32050 | -5/Cetus | Manufactured an Enhanced Grunt 32075 | -5/Cetus | Manufactured an Enhanced Grunt 32100 | -5/Cetus | Manufactured an Enhanced Grunt 32141 | -5/Cetus | Discovered new exit (range 15) 32189 | -5/Cetus | Spotted Cetus Guard 32195 | -5/Cetus | Spotted Cetus Guard 32196 | -5/Cetus | Spotted Cetus Guard 32198 | -5/Cetus | Destroyed Cetus Guard 32203 | -5/Cetus | Allies destroyed Cetus Guard 32207 | -5/Cetus | Spotted Cetus Guard 32210 | -5/Cetus | Allies destroyed Cetus Guard 32211 | -5/Cetus | Destroyed Cetus Guard 32229 | -5/Cetus | Discovered exit to Factory (range 15) 32242 | -5/Cetus | Met Revision 17 32388 | -5/Cetus | Identified exit to Archives 32393 | -5/Cetus | Entered Archives 32585 | -5/Archives | Discovered new exit (range 15) 32611 | -5/Archives | Discovered new exit (range 16) 32662 | -5/Archives | System corruption reached 10% 32943 | -5/Archives | Build established: Scavenger-Mutant 33131 | -5/Archives | Discovered exit to Factory (range 14) 33180 | -5/Archives | Identified exit to Hub_04(d) 33186 | -5/Archives | Entered Hub_04(d) 33348 | -5/Hub_04(d) | Build established: Scavenger-Skirmisher 33570 | -5/Hub_04(d) | Garrison activated, responded to threat 33731 | -5/Hub_04(d) | Network Hub disabled 33739 | -5/Hub_04(d) | Entered Factory 33739 | -4/Factory | Evolved 2 slots: Utility x2 33875 | -4/Factory | Repaired Broken Centrium Heavy Treads 34143 | -4/Factory | Identified exit to Upper Caves 34143 | -4/Factory | Identified exit to Armory 34172 | -4/Factory | Spotted B-86 Titan 34288 | -4/Factory | Fabricated Centrium Heavy Treads (x1) 34346 | -4/Factory | Fabricated Centrium Heavy Treads (x1) 34386 | -4/Factory | Build established: Hacker-Skirmisher 34525 | -4/Factory | Local fabrication network quarantined 34608 | -4/Factory | Garrison activated, responded to threat 34672 | -4/Factory | Destroyed 14 combat bots 34739 | -4/Factory | First assault squad dispatched 34758 | -4/Factory | Incoming assault squad redirected 34768 | -4/Factory | Incoming assault squad redirected 35059 | -4/Factory | Incoming assault squad redirected 35084 | -4/Factory | Discovered new exit (range 8) 35120 | -4/Factory | Incoming assault squad redirected 35159 | -4/Factory | Destroyed 7 combat bots 35260 | -4/Factory | Incoming assault squad redirected 35353 | -4/Factory | Entered Upper Caves 35679 | -4/Upper Caves | Learned Research garrison access intel 35880 | -4/Upper Caves | Build established: Scavenger-Skirmisher 36003 | -4/Upper Caves | Attracted the attention of an 0b10 checkpoint 36033 | -4/Upper Caves | Discovered new exit (range 15) 36060 | -4/Upper Caves | Identified exit to Upper Caves 36061 | -4/Upper Caves | Entered another Upper Caves area 36317 | -4/Upper Caves | Learned Factory trap positions 36317 | -4/Upper Caves | Learned Research trap positions 36317 | -4/Upper Caves | Learned Armory emergency access door positions 36488 | -4/Upper Caves | Found Imp. Powered Armor 36818 | -4/Upper Caves | Discovered new exit (range 13) 37022 | -4/Upper Caves | Attracted the attention of an 0b10 checkpoint 37047 | -4/Upper Caves | Identified exit to Zhirov 37049 | -4/Upper Caves | Entered Zhirov 37049 | -4/Zhirov | Discovered new exit (range 3) 37078 | -4/Zhirov | Met Zhirov 37107 | -4/Zhirov | Learned location of Testing (-2) 37107 | -4/Zhirov | Learned location of Command (-1) 37121 | -4/Zhirov | Zhirov requested help retrieving the SGEMP Prototype 37146 | -4/Zhirov | Found Alien Artifact 37146 | -4/Zhirov | Identified Integrated Dissipator 37146 | -4/Zhirov | Installed Integrated Dissipator, increased core heat dissipation (+20) 37170 | -4/Zhirov | Found Alien Artifact 37321 | -4/Zhirov | Identified exit to Proximity Caves 37324 | -4/Zhirov | Entered Proximity Caves 37596 | -3/Proximity Caves | Discovered new exit (range 8) 37606 | -3/Proximity Caves | Identified exit to Research 37799 | -3/Proximity Caves | Entered Research 37799 | -3/Research | Evolved 2 slots: Power x1, Utility x1 37800 | -3/Research | Loaded intel: 90 trap records 37801 | -3/Research | Loaded intel: 4 garrison access locations 38099 | -3/Research | Build established: Scavenger-Gunner 38486 | -3/Research | Cargo convoy interrupted 38489 | -3/Research | Identified Transdimensional Reconstructor 38489 | -3/Research | Warped through subspace 38514 | -3/Research | Incoming assault squad redirected 38627 | -3/Research | Destroyed 7 combat bots 38641 | -3/Research | Found Prototype Device 38641 | -3/Research | Identified Exp. Shock Absorption System 38664 | -3/Research | Found Prototype Device 38664 | -3/Research | Identified Adv. Kinecellerator 38717 | -3/Research | Spotted B-86 Titan 38771 | -3/Research | Identified exit to Quarantine 38799 | -3/Research | First assault squad dispatched 38870 | -3/Research | System corruption reached 10% 38895 | -3/Research | Incoming assault squad redirected 39038 | -3/Research | Entered Quarantine 39078 | -3/Quarantine | Cryocooling Duct disabled 39093 | -3/Quarantine | Ambient heat levels rising (+20) 39093 | -3/Quarantine | Non-combat units ordered to evacuate 39103 | -3/Quarantine | Found Alien Artifact 39174 | -3/Quarantine | Identified Core Reset Matrix 39394 | -3/Quarantine | Repaired Broken Imp. Weapon Cycler 39464 | -3/Quarantine | Build established: Hacker-Gunner 39538 | -3/Quarantine | First assault squad dispatched 39658 | -3/Quarantine | Found Transdimensional Reconstructor 39666 | -3/Quarantine | Found Transdimensional Reconstructor 39910 | -3/Quarantine | Found Alien Artifact 39910 | -3/Quarantine | Identified Subatomic Replicator 40187 | -3/Quarantine | Lost 3 parts (3u) 40257 | -3/Quarantine | Found Alien Impact Weapon 40416 | -3/Quarantine | Discovered new exit (range 8) 40426 | -3/Quarantine | Identified exit to Research 40432 | -3/Quarantine | Identified Core Stripper 40436 | -3/Quarantine | Spotted Alpha 7 40443 | -3/Quarantine | Destroyed Alpha 7 40455 | -3/Quarantine | Found Prototype Ballistic Gun 40456 | -3/Quarantine | Identified Multirail 40459 | -3/Quarantine | Found Prototype Device 40459 | -3/Quarantine | Identified Exp. ECM Suite 40478 | -3/Quarantine | Found Exp. Targeting Computer 40557 | -3/Quarantine | Build established: Scavenger-Mutant 40815 | -3/Quarantine | Spotted Fortress 40827 | -3/Quarantine | Destroyed Fortress 40834 | -3/Quarantine | Found Prototype Reactor 40834 | -3/Quarantine | Identified Vortex Chain Reactor 40859 | -3/Quarantine | Found Prototype Device 40859 | -3/Quarantine | Identified Exp. Force Field 40886 | -3/Quarantine | Found Prototype Device 40886 | -3/Quarantine | Identified EM Dispersion Field 40932 | -3/Quarantine | Build established: Scavenger-Gunner 41019 | -3/Quarantine | Discovered new exit (range 5) 41024 | -3/Quarantine | Identified exit to Section 7 41086 | -3/Quarantine | Entered Section 7 41109 | -3/Section 7 | Found Alien Artifact 41109 | -3/Section 7 | Identified Spacefold Activator 41280 | -3/Section 7 | Repaired Hyp. Coil Gun 41337 | -3/Section 7 | Repaired Hyp. Coil Gun 41395 | -3/Section 7 | Repaired Hyp. Coil Gun 41452 | -3/Section 7 | Repaired Hyp. Coil Gun 41602 | -3/Section 7 | Found Alien Artifact 41608 | -3/Section 7 | Identified Integrated Reactor 41608 | -3/Section 7 | Installed Integrated Reactor, increased core energy generation (+10) 41692 | -3/Section 7 | Spotted S7 Guard 41711 | -3/Section 7 | Destroyed S7 Guard 41716 | -3/Section 7 | Found Prototype Protection 41716 | -3/Section 7 | Identified Hvy. Regenerative Plating 41748 | -3/Section 7 | Found Alien Artifact 41748 | -3/Section 7 | Identified Integrated Singularity Reactor 41748 | -3/Section 7 | Installed Integrated Singularity Reactor, increased core energy generation (+20) 41811 | -3/Section 7 | Found Prototype Processor 41811 | -3/Section 7 | Identified Exp. Signal Interpreter 42152 | -3/Section 7 | Build established: Hacker-Gunner 42249 | -3/Section 7 | Found Prototype Launcher 42249 | -3/Section 7 | Identified Tactical Quantum Warhead 42483 | -3/Section 7 | Destroyed 8 combat bots 42483 | -3/Section 7 | Warped through subspace 42780 | -3/Section 7 | Warped through subspace 42836 | -3/Section 7 | First assault squad dispatched 42858 | -3/Section 7 | Incoming assault squad redirected 43029 | -3/Section 7 | Core integrity fell below 50% 43327 | -3/Section 7 | Spotted S7 Guard 43335 | -3/Section 7 | Destroyed S7 Guard 43357 | -3/Section 7 | Found Alien Artifact 43357 | -3/Section 7 | Identified Core Regenerator 43357 | -3/Section 7 | Used Core Regenerator, restored core integrity (+325) 43743 | -3/Section 7 | Found Transdimensional Reconstructor 43747 | -3/Section 7 | Found Transdimensional Reconstructor 43750 | -3/Section 7 | Found Alien Artifact 43839 | -3/Section 7 | Spotted B-99 Colossus 43904 | -3/Section 7 | Befriended a Behemoth using the annoying Tinkerer's hack 43923 | -3/Section 7 | Incoming assault squad redirected 43926 | -3/Section 7 | Incoming assault squad redirected 43969 | -3/Section 7 | Destroyed 7 combat bots 43973 | -3/Section 7 | Found Multirail 44071 | -3/Section 7 | Found Alien Artifact 44071 | -3/Section 7 | Identified LRC Insulator 44071 | -3/Section 7 | Installed LRC Insulator, gained EM resistance (25) 44080 | -3/Section 7 | Found Alien Artifact 44080 | -3/Section 7 | Identified LRC Armor 44080 | -3/Section 7 | Installed LRC Armor, increased core integrity (+250) 44083 | -3/Section 7 | Found LRC Insulator 44083 | -3/Section 7 | Installed LRC Insulator, gained EM resistance (25) 44152 | -3/Section 7 | Found Integrated Dissipator 44152 | -3/Section 7 | Installed Integrated Dissipator, increased core heat dissipation (+20) 44210 | -3/Section 7 | Found Integrated Dissipator 44210 | -3/Section 7 | Installed Integrated Dissipator, increased core heat dissipation (+20) 44213 | -3/Section 7 | Found Integrated Dissipator 44213 | -3/Section 7 | Installed Integrated Dissipator, increased core heat dissipation (+20) 44216 | -3/Section 7 | Found Integrated Dissipator 44216 | -3/Section 7 | Installed Integrated Dissipator, increased core heat dissipation (+20) 44329 | -3/Section 7 | Spotted Alpha 7 44330 | -3/Section 7 | Spotted Alpha 7 44367 | -3/Section 7 | Lost 3 parts (1n2w) 44369 | -3/Section 7 | Warped through subspace 44409 | -3/Section 7 | Spotted S7 Guard 44421 | -3/Section 7 | Destroyed S7 Guard 44427 | -3/Section 7 | Found Hvy. Regenerative Plating 44453 | -3/Section 7 | Destroyed Alpha 7 44457 | -3/Section 7 | Found Multirail 44468 | -3/Section 7 | Found Exp. Targeting Computer 44486 | -3/Section 7 | Found Alien Artifact 44486 | -3/Section 7 | Identified Core Membrane 44486 | -3/Section 7 | Installed Core Membrane, gained immunity to corruption 44535 | -3/Section 7 | Found Alien Artifact 44535 | -3/Section 7 | Identified Integrity Redistributor 44535 | -3/Section 7 | Used Integrity Redistributor, redistributed integrity from core (-335) 44600 | -3/Section 7 | Destroyed Alpha 7 44603 | -3/Section 7 | Incoming assault squad redirected 44609 | -3/Section 7 | Found Multirail 44883 | -3/Section 7 | Incoming assault squad redirected 45025 | -3/Section 7 | Entered Research 45025 | -2/Research | Evolved 2 slots: Utility x2 45089 | -2/Research | Fabricated Adv. Weapon Cycler (x2) 45377 | -2/Research | Identified exit to Testing 45462 | -2/Research | Garrison activated, responded to threat 45565 | -2/Research | First assault squad dispatched 45593 | -2/Research | Incoming assault squad redirected 45988 | -2/Research | Incoming investigation squad redirected 46037 | -2/Research | Found Exp. Targeting Computer 46045 | -2/Research | Found Exp. Targeting Computer 46125 | -2/Research | Entered Testing 46174 | -2/Testing | Found Prototype Energy Cannon 46174 | -2/Testing | Identified Cld. Nova Cannon 46218 | -2/Testing | Found Prototype Hackware 46218 | -2/Testing | Identified Ghost Barrier 46318 | -2/Testing | Fabricated Exp. Sensor Array? 46393 | -2/Testing | Fabricated Hdn. Centrium Heavy Treads (x1) 46409 | -2/Testing | First assault squad dispatched 46425 | -2/Testing | Incoming assault squad redirected 46451 | -2/Testing | Fabricated Hdn. Centrium Heavy Treads (x1) 46531 | -2/Testing | Local fabrication network quarantined 46580 | -2/Testing | Protovariant out of control (PL-IV3L4W19VP) 46580 | -2/Testing | Unleashed a protovariant (PL-IV3L4W19VP) 46615 | -2/Testing | Incoming assault squad redirected 46635 | -2/Testing | Scanned by Researcher 46685 | -2/Testing | Destroyed 10 combat bots 46717 | -2/Testing | Discovered new exit (range 9) 46739 | -2/Testing | Found Prototype Processor 46739 | -2/Testing | Identified Exp. Core Analyzer 46781 | -2/Testing | Identified exit to Access 46832 | -2/Testing | Found Prototype Ballistic Cannon 46832 | -2/Testing | Identified Omega Cannon 47544 | -2/Testing | Found Multirail 47611 | -2/Testing | Spotted Alpha 7 47626 | -2/Testing | Destroyed Alpha 7 47640 | -2/Testing | Found Multirail 47745 | -2/Testing | Build established: Hacker-Mutant 47769 | -2/Testing | Found Multirail 47773 | -2/Testing | Found Multirail 47780 | -2/Testing | Found Multirail 48050 | -2/Testing | Build established: Hacker-Gunner 48187 | -2/Testing | Warped through subspace 48188 | -2/Testing | Entered Access 48188 | -1/Access | Evolved 2 slots: Utility x2 48438 | -1/Access | First assault squad dispatched 48458 | -1/Access | Incoming assault squad redirected 48466 | -1/Access | Incoming assault squad redirected 48673 | -1/Access | Discovered new exit (range 6) 48681 | -1/Access | Identified exit to Surface 49100 | -1/Access | Identified exit to Command 49716 | -1/Access | Incoming assault squad redirected 49785 | -1/Access | Found Multirail 49790 | -1/Access | Found Multirail 49801 | -1/Access | Found Multirail 49816 | -1/Access | Found Multirail 50064 | -1/Access | Central database locked down 50510 | -1/Access | Spotted B-99 Colossus 50516 | -1/Access | Befriended a Behemoth using the annoying Tinkerer's hack 50573 | -1/Access | Fabricated Exp. Force Field (x1) 50860 | -1/Access | Entered Command 50860 | -1/Command | Accompanied by 1 ally 50990 | -1/Command | Spotted B-99 Colossus 50991 | -1/Command | Destroyed B-99 Colossus 51118 | -1/Command | Destroyed 9 combat bots 51492 | -1/Command | Spotted Combat Programmer 51492 | -1/Command | Spotted Combat Programmer 51516 | -1/Command | Destroyed Combat Programmer 51524 | -1/Command | Spotted M Guard 51526 | -1/Command | Spotted M Guard 51531 | -1/Command | Destroyed Combat Programmer 51552 | -1/Command | Destroyed M Guard 51564 | -1/Command | Destroyed M Guard 51564 | -1/Command | All MAIN.C guards destroyed 51574 | -1/Command | Lost 4 parts (1p2u1w) 51641 | -1/Command | First assault squad dispatched 51879 | -1/Command | Incoming assault squad redirected 52029 | -1/Command | Build established: Scavenger-Gunner 52271 | -1/Command | Met MAIN.C 52297 | -1/Command | Destroyed MAIN.C Shell 52299 | -1/Command | MAIN.C activated Command garrisons 52305 | -1/Command | 0b10 Conduit disabled 52325 | -1/Command | Destroyed MAIN.C 52345 | -1/Command | Found Prototype Processor 52345 | -1/Command | Identified Exp. Target Analyzer 52347 | -1/Command | Lost 3 parts (2u1w) 52352 | -1/Command | Found Exp. Targeting Computer 52355 | -1/Command | Found Prototype Protection 52358 | -1/Command | Found Prototype Device 52358 | -1/Command | Identified Beam Splitter 52372 | -1/Command | Found Prototype Reactor 52373 | -1/Command | Identified Zero-point Reactor 52465 | -1/Command | Destroyed 8 combat bots 52653 | -1/Command | Found Vortex Chain Reactor 52657 | -1/Command | Found Zero-point Reactor 52679 | -1/Command | Found Prototype Ballistic Cannon 52679 | -1/Command | Identified Perforator 52691 | -1/Command | Found Prototype Processor 52691 | -1/Command | Identified Exp. Melee Analysis Suite 52694 | -1/Command | Found Prototype Device 52694 | -1/Command | Identified Exp. Transmission Jammer 52699 | -1/Command | Found Exp. Targeting Computer 52709 | -1/Command | Found Prototype Device 52709 | -1/Command | Identified Exp. Focal Shield 53176 | -1/Command | Spotted B-99 Colossus 53179 | -1/Command | Destroyed B-99 Colossus 53637 | -1/Command | Found Exp. Targeting Computer 53645 | -1/Command | Discovered exit to Surface (range 8) 55082 | -1/Command | Spotted Alpha 7 55122 | -1/Command | Destroyed Alpha 7 55155 | -1/Command | Found Exp. Targeting Computer 55570 | -1/Command | Used Subatomic Replicator to replicate Multirail 56927 | -1/Command | Discovered exit to Surface (range 12) 57871 | -1/Command | Identified Hpw. Transdimensional Reconstructor 57871 | -1/Command | Warped through subspace to slip node 57871 | -1/Command | Discovered new exit (range 5) 57881 | -1/Command | Entered Access_0 57884 | -1/Access_0 | Met Architect 57888 | -1/Access_0 | Architect warped through subspace 57910 | -1/Access_0 | Destroyed A8 57979 | -1/Access_0 | Architect warped through subspace 58019 | -1/Access_0 | Architect warped through subspace 58055 | -1/Access_0 | Architect warped through subspace 58076 | -1/Access_0 | Subspace Access Node disabled 58095 | -1/Access_0 | Architect warped through subspace 58130 | -1/Access_0 | Architect warped through subspace 58165 | -1/Access_0 | Architect warped through subspace 58189 | -1/Access_0 | Lost 3 parts (3u) 58203 | -1/Access_0 | Architect warped through subspace 58217 | -1/Access_0 | Found Prototype Device 58217 | -1/Access_0 | Identified Desublimator 58221 | -1/Access_0 | Found Prototype Device 58221 | -1/Access_0 | Identified Exp. Thermal Shield 58230 | -1/Access_0 | Architect warped through subspace 58268 | -1/Access_0 | Architect warped through subspace 58293 | -1/Access_0 | Architect warped through subspace 58295 | -1/Access_0 | Subspace Access Node disabled 58320 | -1/Access_0 | Architect warped through subspace 58349 | -1/Access_0 | Architect warped through subspace 58371 | -1/Access_0 | Architect warped through subspace 58394 | -1/Access_0 | Architect warped through subspace 58420 | -1/Access_0 | Architect warped through subspace 58434 | -1/Access_0 | Found Desublimator 58446 | -1/Access_0 | Architect warped through subspace 58457 | -1/Access_0 | Found Prototype Device 58457 | -1/Access_0 | Identified Exp. Weapon Cycler 58467 | -1/Access_0 | Found Exp. Weapon Cycler 58474 | -1/Access_0 | Architect warped through subspace 58485 | -1/Access_0 | Found Exp. Targeting Computer 58501 | -1/Access_0 | Architect warped through subspace 58535 | -1/Access_0 | Architect warped through subspace 58544 | -1/Access_0 | Subspace Access Node disabled 58556 | -1/Access_0 | Architect warped through subspace 58571 | -1/Access_0 | Architect warped through subspace 58613 | -1/Access_0 | Architect warped through subspace 58629 | -1/Access_0 | A6 warped into view 58656 | -1/Access_0 | Subspace Access Node disabled 58673 | -1/Access_0 | Destroyed A6 58703 | -1/Access_0 | Found Prototype Device 58703 | -1/Access_0 | Identified Exp. Actuator Array 58710 | -1/Access_0 | Lost 8 parts (1p2n2u3w) 58817 | -1/Access_0 | Found Exp. Targeting Computer 58848 | -1/Access_0 | Found Prototype Device 58848 | -1/Access_0 | Identified Exp. Phase Shifter 59294 | -1/Access_0 | Found Desublimator 59301 | -1/Access_0 | Found Exp. Phase Shifter 59417 | -1/Access_0 | Found Sigix Corpse 59501 | -1/Access_0 | Found Integrated Dissipator 59501 | -1/Access_0 | Installed Integrated Dissipator, increased core heat dissipation (+20) 59716 | -1/Access_0 | Build established: Scavenger-Mutant 59854 | -1/Access_0 | Found Alien Slashing Weapon 60043 | -1/Access_0 | Found Prototype Protection 60043 | -1/Access_0 | Identified Exp. Powered Armor 60075 | -1/Access_0 | Found Exp. Powered Armor 60439 | -1/Access_0 | A5 warped into view 60525 | -1/Access_0 | Destroyed A5 61266 | -1/Access_0 | Found Desublimator 61271 | -1/Access_0 | Found Exp. Targeting Computer 61480 | -1/Access_0 | A4 warped into view 61619 | -1/Access_0 | Destroyed A4 61633 | -1/Access_0 | Found Prototype Hackware 61633 | -1/Access_0 | Identified System Mapper 61656 | -1/Access_0 | Found Exp. Target Analyzer 62093 | -1/Access_0 | Found Exp. Powered Armor 62287 | -1/Access_0 | Found Prototype Device 62287 | -1/Access_0 | Identified Exp. Cloaking Device 62390 | -1/Access_0 | Core integrity fell below 50% 62516 | -1/Access_0 | A3 warped into view 62664 | -1/Access_0 | Started Test 138-B, establishing a local singularity 63143 | -1/Access_0 | Destroyed A3 63152 | -1/Access_0 | Found Prototype Device 63152 | -1/Access_0 | Identified ST Field Compressor 63169 | -1/Access_0 | Found Prototype Processor 63169 | -1/Access_0 | Identified Spectral Analyzer 63316 | -1/Access_0 | Destroyed A2 63320 | -1/Access_0 | Extracted Singularity Gate Test 138-C access codes from A2's data core 64903 | -1/Access_0 | Found Exp. Powered Armor 65304 | -1/Access_0 | Found Exp. Powered Armor 65982 | -1/Access_0 | Found Exp. Powered Armor 66743 | -1/Access_0 | Found Exp. Weapon Cycler 69099 | -1/Access_0 | Destroyed Architect 69100 | -1/Access_0 | Architect triggered a singularity event 69102 | -1/Access_0 | Released all parts (22) 69103 | -1/Access_0 | Found Hpw. Transdimensional Reconstructor 69103 | -1/Access_0 | Warped through subspace to slip node 69103 | -1/Access_0 | Discovered exit to Surface (range 8) 69107 | *** | Escaped singularity! Last Messages --------------- 69102_ Released Cld. Nova Cannon. 69102_ Cld. Nova Cannon crushed and broken. 69102_ Released Exp. Biometal Heavy Treads. 69102_ Exp. Biometal Heavy Treads crushed and broken. 69102_ Released Imp. Quantum Reactor. 69102_ Imp. Quantum Reactor crushed and broken. 69102_ Released Lrn. Gatling Laser. 69102_ Lrn. Gatling Laser crushed and broken. 69102_ Released Exp. Powered Armor. 69102_ Exp. Powered Armor crushed and broken. 69102_ Released Exp. Weapon Cycler. 69102_ Exp. Weapon Cycler crushed and broken. 69103_ A0_COM: 8. 69103_ Acquired Hpw. Transdimensional Reconstructor. 69103_ Warped through subspace, drawn to slip node. 69103_ EXIT=FOUND: SURFACE 69104_ A0_COM: 7. 69105_ A0_COM: 6. 69106_ A0_COM: 5. 69107_ A0_COM: 4. Map ----- +----------------------------------------------------+ | | | | | | | | | | | | | | | | | | | | | | | | | | | | | | | | | ?????????????????????????????????????????????????? | | ?????????????????????????????????????????????????? | | ?????????????????????????????????????????????????? | | ?????????????????????????????????????????????????? | | ?????????????????????????????????????????????????? | | ?????????????????????????????????????????????????? | | ????????????????????????###??????????????????????? | | ???????????????????????## ##?????????????????????? | | ???????????????????????# #?????????????????????? | | ???????????????????????# @ #?????????????????????? | | ??????????????????????## #?????????????????????? | | ??????????????????????# #?????????????????????? | | ??????????????????????# ##?????????????????????? | | ??????????????????????## #?????????????????????? | | ??????????????????????# #?????????????????????? | | ??????????????????????# ##?????????????????????? | | ??????????????????????# < #?????????????????????? | | ??????????????????????# ##?????????????????????? | | ??????????????????????## #??????????????????????? | | ???????????????????????####??????????????????????? | | ?????????????????????????????????????????????????? | | ?????????????????????????????????????????????????? | | ?????????????????????????????????????????????????? | | ?????????????????????????????????????????????????? | | ?????????????????????????????????????????????????? | | ?????????????????????????????????????????????????? | | ?????????????????????????????????????????????????? | | ?????????????????????????????????????????????????? | | ?????????????????????????????????????????????????? | | ?????????????????????????????????????????????????? | | ?????????????????????????????????????????????????? | | ?????????????????????????????????????????????????? | | ?????????????????????????????????????????????????? | | ?????????????????????????????????????????????????? | +----------------------------------------------------+ Best States ------------- Heat Dissipation 184 Energy Generation 91 Energy Capacity 1900 Matter Stores 1300 Matter Capacity 1300 Sight Range 16 Robot Scan Range 20 Terrain Scan Density 10 Jamming Range 16 Armor Coverage 1200 Resistance: TH 75 Resistance: EM 100 Weapon Shielding 66 Weapon Cycling 30 Phase Shifting 20 Evasion (%) 60 Targeting Accuracy 60 Target Analysis 10 Armor Integrity Analysis 40 Recoil Reduction 4 Matter Filtering 50 Offensive Hacking 50 Defensive Hacking 20 Item Schematics ----------------- Huge Storage Unit | -10/Materials | Hacked Exp. Sensor Array | -9/Materials | Scanalyzed Combat Drone Bay | -7/Data Miner | Free Lgt. Regenerative Plating | -7/Data Miner | Free Exp. Terrain Scan Processor | -7/Data Miner | Free Mni. Smartbomb Launcher | -7/Data Miner | Free Kinetic Spear | -7/Data Miner | Free Imp. Hacking Suite | -6/Factory | Hacked Beamcaster | -6/Zion | Free Riot Gun | -6/Zion | Free Hvy. Riot Gun | -6/Zion | Free Battle Rifle | -6/Zion | Free Enh. Flamer | -6/Zion | Free Phasing Sabre | -6/Zion | Free Centrium Heavy Treads | -4/Factory | Scanalyzed Assault Drone Bay | -4/Zhirov | Free Exp. Heat Sink | -4/Zhirov | Free Exp. Optical Array | -4/Zhirov | Free Imp. Arc Thrower | -4/Zhirov | Free Tri-rail Accelerator | -3/Research | Scanalyzed Exp. Matter Compressor | -3/Research | Hacked Lrn. Tractor Beam | -3/Quarantine | Scanalyzed Imp. Weapon Cycler | -3/Quarantine | Scanalyzed Hyp. Railgun | -3/Quarantine | Hacked Adv. Heavy Siege Treads | -3/Quarantine | Hacked Exp. Targeting Computer | -3/Quarantine | Hacked Adv. Weapon Cycler | -3/Quarantine | Hacked Hdn. Centrium Heavy Treads | -3/Section 7 | Scanalyzed Exp. Force Field | -1/Access | Hacked Robot Schematics ------------------ S-27 Virus | -7/Data Miner | Free G-50 Soldier | -7/Data Miner | Free H-66 Slayer | -7/Data Miner | Free I-36 Angel | -7/Data Miner | Free I-47 Archangel | -7/Data Miner | Free Fabricated ------------ Exp. Sensor Array | x1 | -7/Factory Mni. Smartbomb Launcher | x1 | -5/Factory Centrium Heavy Treads | x1 | -4/Factory Centrium Heavy Treads | x1 | -4/Factory Adv. Weapon Cycler | x2 | -2/Research Exp. Sensor Array | x1 | -2/Testing Hdn. Centrium Heavy Treads | x1 | -2/Testing Hdn. Centrium Heavy Treads | x1 | -2/Testing Exp. Force Field | x1 | -1/Access Alien Tech Used ----------------- Integrated Dissipator Transdimensional Reconstructor Subatomic Replicator Core Stripper Spacefold Activator Integrated Reactor Integrated Singularity Reactor Core Regenerator LRC Insulator LRC Armor Core Membrane Integrity Redistributor High-powered Transdimensional Reconstructor Achievements -------------- None Challenges ------------ None Game ------ Seed SurgeThiefAutocannon Manual? 0 Play Time 06:25:45 Cumulative 1293.5 hours Start 2021.06.22 @ 19:27:51 End 2021.06.24 @ 17:11:25 Sessions 3 Manual Loads 0 Difficulty Rogue Special Mode None Game No. 436 Rogue 436 Adventurer 0 Explorer 0 Win Type 6 Total 94 Types 20/12/37/5/1/2/15/1/1 Lore% 97 Gallery% 96 Achievement% 85 Wizard Run 0 Options --------- ASCII 0 Keyboard 0 Movement Numpad Keybinds 0 Fullscreen 1 Font 18/SmallcapsGlow Map View 76x50 Tactical HUD 1 Map Filters NONE Filters NONE Steam 1 RUN: a68a332e-7e5e-49ab-89f1-cd51de9f7658